Cogmind - Beta 15 @@@ ROGUE MODE // 2025.07.05 @ 00:21:15 Player: Cracklepappy Result: Destroyed by Y-72 Warden with Quantum Rifle Performance ------------- Evolutions (8) 4000 Regions Visited (33) 6600 Robots Destroyed (726) 3630 Value Destroyed (38206) 38206 Prototype IDs (273) 5460 Alien Tech Used (4) 800 Bonus (32420) 32420 TOTAL SCORE: 91116 Bonus ------- Triggered High Security 500 High Alert Combat Kills 16393 Follower Combat Kills 3499 Entered Garrisons 1200 Used RIF Installer 3000 Entered DSFs 500 Met Data Miner 300 Used Data Conduit 3000 Built Enhanced Grunts 300 A7 Reached Mainframe 300 Met R17 at Cetus 500 Met R17 at Research 2000 Scanned by Researcher 500 Pursued by Intercept 500 Friendly Fire -72 Cogmind --------- Core Integrity 0/1450 Matter 290/300 Energy 220/220 System Corruption 68% Temperature Cool (9) Movement Walking (140) Location -2/Protoforge Parts ------- > --- POWER (2) -------- Concept Zero-point Core > --- PROPULSION (4) --- Experimental Armored Exoskeleton > --- UTILITY (11) ----- Concept Thermoelectric Network Concept Antigrav Storage Unit Experimental Target Analyzer Concept Core Analysis Suite Concept Recoil Nullifier Centrium Medium Armor Plating Concept RG22 Armor Concept RG22 Armor Concept RG22 Armor Graphene Brace Crosscalibrator > --- WEAPON (6) ------- Concept Variable Chargecaster Helical Railgun > --- INVENTORY (25) --- Concept Zero-point Core Concept Turbovents Concept Chromion Battery (800) Experimental Matter Compressor (500) Concept Recoil Nullifier Advanced Weapon Cycler Concept Antimissile System Concept Network Penetrator Relay Coupler [Proto] (15) Relay Coupler [Proto] (15) Faulty Concept Impact Drone Bay (6/6) High-powered Transdimensional Reconstructor Subatomic Replicator Concept Variable Chargecaster Helical Railgun Helical Railgun Concept XC Strikerail Concept Heavy Railcannon Concept Smart ZDS Advanced Remote Datajack Plasma Cutter Self-destruct Interrupter (46) Peak State ------------ > --- POWER ------------ Concept Zero-point Core Concept Zero-point Core > --- PROPULSION ------- Advanced Heavy Treads Experimental Heavy Siege Treads > --- UTILITY ---------- Concept Turbovents Concept Antigrav Storage Unit Concept Weapon Articulator Experimental Target Analyzer Experimental Core Analyzer Advanced Weapon Cycler Concept Core Shell Concept Core Shell Centrium Medium Armor Plating Graphene Brace Crosscalibrator > --- WEAPON ----------- Concept Plasma Driver Concept XC Strikerail Concept Miniperforator Concept Helical Railcannon Concept Helical Railcannon Concept Helical Railcannon > --- INVENTORY -------- Concept Zero-point Core Concept Chromion Battery Experimental Matter Compressor Concept Countertargeting System Concept Recoil Nullifier Concept Recoil Nullifier Concept Reaction Jets Advanced Powered Armor Concept RG22 Armor Concept RG22 Armor Concept RG22 Armor Concept Beam Splitter Concept Hardlight Director Concept Antimissile System Relay Coupler [Proto] Relay Coupler [Proto] Advanced Component Analysis Suite Concept Matter Streamer Transdimensional Reconstructor High-powered Transdimensional Reconstructor Subatomic Replicator Concept Rapid Grenade Launcher Advanced Remote Datajack Plasma Cutter Self-destruct Interrupter [Rating: 284] Favorites ----------- Power Reinforced Deuterium Engine Engine Reinforced Deuterium Engine Power Core Light Nuclear Core Reactor Quantum Reactor Propulsion Light Treads Treads Light Treads Leg Enhanced Flexi-carbon Leg Wheel Armored Huge Wheel Utility Huge Storage Unit Device Graphene Brace Storage Huge Storage Unit Processor Core Analyzer Hackware Relay Coupler [Proto] Protection Advanced Powered Armor Artifact Phase Armor Weapon KE Penetrator Energy Gun Concept Variable Chargecaster Energy Cannon Cooled Particle Cannon Ballistic Gun KE Penetrator Ballistic Cannon Light Cannon Launcher Grenade Launcher Special Weapon Advanced Remote Datajack Impact Weapon Maul Slashing Weapon Chainsword Build | -11 -10 -10 -9 -9 -8 -8 -8 -7 -7 -7 -7 -6 -6 -6 -6 -6 -6 -6 -6 -6 -5 -5 -5 -5 -4 -4 -3 -3 -3 -3 -2 -2 -2 ------- Run | Yrd Mat Min Mat Min Mat Gar Mat Fac Low Low Dat Pro Fac Was Fac Ext Cet Arc Hub Gar Fac Gar Fac Gar Fac Gar Res Gar Res DSF Res Qua Frg Slots Evolved 16 | . . . 2 . 2 . . 2 . . . . 2 . . . . . . . 2 . . . 2 . 2 . . . 2 . . Power 1 | . . . . . . . . . . . . . 1 . . . . . . . . . . . . . . . . . . . . Propulsion 2 | . . . 1 . . . . 1 . . . . . . . . . . . . . . . . . . . . . . . . . Utility 9 | . . . . . 1 . . 1 . . . . 1 . . . . . . . 1 . . . 2 . 1 . . . 2 . . Weapon 4 | . . . 1 . 1 . . . . . . . . . . . . . . . 1 . . . . . 1 . . . . . . Parts Attached 357 | 8 9 7 28 4 26 23 7 8 2 2 13 6 14 1 3 13 5 14 1 7 1 10 3 6 1 5 11 11 . 3 9 13 83 Power 44 | 1 2 2 4 2 2 2 1 . . . 1 1 3 . . 2 . 1 . . . . . 2 . 2 2 2 . . 3 1 8 Engine 16 | 1 1 1 4 1 1 2 . . . . 1 . 2 . . 2 . . . . . . . . . . . . . . . . . Core 9 | . 1 1 . 1 1 . 1 . . . . . 1 . . . . . . . . . . . . 1 . . . . . . 2 Reactor 19 | . . . . . . . . . . . . 1 . . . . . 1 . . . . . 2 . 1 2 2 . . 3 1 6 Propulsion 41 | 2 . . 11 1 4 2 . 1 . . 3 1 3 . . 1 . 2 . . . . . . . . 2 . . 2 . 1 5 Treads 29 | 2 . . 11 1 3 . . . . . . . 1 . . . . 2 . . . . . . . . 2 . . 2 . 1 4 Leg 2 | . . . . . . . . . . . 1 . . . . . . . . . . . . . . . . . . . . . 1 Wheel 10 | . . . . . 1 2 . 1 . . 2 1 2 . . 1 . . . . . . . . . . . . . . . . . Hover . | . . . . . . . . . . . . . . . . . . . . . . . . . . . . . . . . . . Flight . | . . . . . . . . . . . . . . . . . . . . . . . . . . . . . . . . . . Utility 133 | 3 2 1 3 1 10 8 1 4 1 1 5 2 4 1 2 3 3 8 1 2 1 7 2 1 1 1 3 4 . . 2 5 40 Device 63 | 2 . . 2 1 5 4 . . . . . 1 2 . 1 2 2 7 1 2 1 2 1 1 . 1 3 1 . . 2 2 17 Storage 9 | 1 1 . 1 . 1 . . . . . 2 . . . . . . . . . . . . . 1 . . . . . . . 2 Processor 9 | . . . . . . . . 1 . . 1 . . . . . . . . . . 1 . . . . . 1 . . . 1 4 Hackware 13 | . . . . . 1 . 1 . . . . . . 1 1 . . . . . . . 1 . . . . 2 . . . 1 5 Protection 38 | . 1 1 . . 3 4 . 3 1 1 2 1 2 . . 1 1 1 . . . 4 . . . . . . . . . . 12 Artifact 1 | . . . . . . . . . . . . . . . . . . . . . . . . . . . . . . . . 1 . Weapon 139 | 2 5 4 10 . 10 11 5 3 1 1 4 2 4 . 1 7 2 3 . 5 . 3 1 3 . 2 4 5 . 1 4 6 30 Energy Gun 5 | . 1 . . . . . 1 . . . . . 1 . . . . . . . . . . . . . . . . . . . 2 Energy Cannon 28 | . . . 1 . . 4 . 1 . . 4 . 2 . 1 2 1 . . 1 . . . 1 . . 3 . . . 1 2 4 Ballistic Gun 71 | 2 . 4 5 . 8 2 4 1 1 1 . . 1 . . 5 1 3 . 4 . 3 . 1 . 2 1 5 . 1 2 2 12 Ballistic Cannon 14 | . 3 . . . . 2 . . . . . . . . . . . . . . . . . . . . . . . . 1 1 7 Launcher 10 | . 1 . 3 . 1 . . . . . . 1 . . . . . . . . . . . 1 . . . . . . . . 3 Special Weapon 6 | . . . . . . 1 . 1 . . . . . . . . . . . . . . 1 . . . . . . . . 1 2 Impact Weapon 1 | . . . 1 . . . . . . . . . . . . . . . . . . . . . . . . . . . . . . Slashing Weapon 4 | . . . . . 1 2 . . . . . 1 . . . . . . . . . . . . . . . . . . . . . Piercing Weapon . | . . . . . . . . . . . . . . . . . . . . . . . . . . . . . . . . . . Special Melee Weapon . | . . . . . . . . . . . . . . . . . . . . . . . . . . . . . . . . . . Unidentified Prototypes 14 | . . . 3 . 2 . . . . . . . . . . . . . . . . . . . . . . 1 . . . 1 7 Corrupted Parts 13 | . . . . . . . . . . . 2 1 . . . . . 3 . 5 . . . . . . . . . . . . 2 System Corruption 82 | . . . . . . . . . . . 15 3 . . . . . 23 . 27 . . . . . . . . . . . . 14 Parts Lost 62 | . 1 1 5 . 6 5 1 . . . 7 1 1 . . 1 . . . . . 1 . . . . 1 . . 3 . . 28 Power 7 | . . 1 . . . . 1 . . . . 1 . . . . . . . . . . . . . . 1 . . 1 . . 2 Propulsion 10 | . . . 2 . 1 . . . . . 3 . . . . 1 . . . . . . . . . . . . . . . . 3 Utility 17 | . . . 1 . 2 1 . . . . 1 . 1 . . . . . . . . . . . . . . . . . . . 11 Weapon 28 | . 1 . 2 . 3 4 . . . . 3 . . . . . . . . . . 1 . . . . . . . 2 . . 12 Highest Loss Streak 6 | . 1 1 2 . 5 3 1 . . . 4 1 1 . . 1 . . . . . 1 . . . . 1 . . 2 . . 6 To Critical Strikes . | . . . . . . . . . . . . . . . . . . . . . . . . . . . . . . . . . . Average Backups 22 | 4 22 24 24 25 22 22 23 23 22 21 20 22 22 22 21 22 22 19 21 21 20 21 21 21 19 21 21 22 23 22 22 22 22 Power . | . 1 . . 1 1 1 1 . 1 1 . . . . . 1 1 1 1 . . . 1 1 1 1 1 1 1 . . . . Propulsion 2 | 2 3 3 3 3 4 3 2 2 2 2 1 . . 1 1 . . 1 1 1 1 1 1 1 2 2 2 1 1 1 1 . . Utility 10 | . 7 11 11 9 7 10 9 8 9 9 8 13 11 11 10 10 8 8 9 11 12 14 14 14 12 14 14 15 17 17 14 13 11 Weapon 6 | . 9 10 9 10 8 5 8 9 8 7 7 7 8 8 8 8 9 7 8 7 5 3 3 3 2 1 1 2 2 2 4 2 4 Tool/Special . | . . . . . . . . . . . . . . . . . . . . . . . . . . . . . . . . . . Unused Backups 137 | 2 11 1 20 3 16 6 5 11 1 . 4 1 4 . 3 3 5 1 1 4 . . . . . 3 2 . . . 3 3 24 Power 9 | . 2 . . . 1 1 . . . . . . . . 1 . 1 . . . . . . . . 1 1 . . . . . 1 Propulsion 18 | 1 3 . 3 . 3 . 1 2 . . 3 1 1 . . . . . . . . . . . . . . . . . . . . Utility 69 | 1 1 . 10 3 6 4 2 4 1 . 1 . 2 . 1 2 3 1 1 2 . . . . . 2 1 . . . 1 2 18 Weapon 36 | . 5 1 7 . 6 1 2 2 . . . . 1 . 1 1 1 . . 2 . . . . . . . . . . 2 1 3 Tool/Special 5 | . . . . . . . . 3 . . . . . . . . . . . . . . . . . . . . . . . . 2 Average Slot Usage (%) 91 | . 99 99 99 100 94 89 89 91 92 92 78 92 87 86 86 86 85 85 86 86 87 87 88 88 87 89 89 90 90 88 89 86 85 Engine 5 | . 6 1 8 9 8 8 7 6 7 7 7 1 3 6 6 11 13 12 13 11 5 5 5 3 . . . . . . . . . Core 1 | . 7 12 2 1 . . 1 . . . . . 1 . . . . . . . . . . . . 2 . . . . . . 3 Reactor 2 | . . . . . . . . . . . . 5 6 6 6 1 . . . 1 5 5 5 6 10 7 8 9 9 9 8 8 3 Treads 13 | . 27 28 32 33 18 8 8 6 7 7 3 . . . . . . 8 13 13 11 11 11 11 10 10 9 9 9 9 8 7 8 Wheel 4 | . . . . . 4 9 9 15 15 15 14 15 14 13 13 13 13 4 . . . . . . . . . . . . . . . Device 11 | . 2 . 7 11 10 9 7 7 7 7 5 7 12 13 9 10 13 14 13 13 16 14 16 17 16 21 19 18 19 19 25 23 20 Storage 7 | . 14 14 11 11 9 9 9 7 7 7 7 7 6 6 6 6 6 6 6 6 5 5 5 5 7 5 4 4 4 4 4 4 4 Processor 3 | . . . . . . . . 6 7 7 7 7 6 6 6 6 6 6 6 6 5 5 5 5 5 5 4 4 4 4 4 6 5 Protection 7 | . 11 14 3 . 6 8 9 7 7 7 6 6 6 . 3 6 6 4 6 6 5 7 5 5 10 10 13 14 14 13 13 4 7 Energy Cannon 3 | . . . . . . 10 1 . . . 10 9 10 13 18 14 11 5 . . . 2 . 1 3 . 7 2 . . . 2 3 Ballistic Gun 21 | . 6 5 32 33 35 20 34 29 29 29 5 20 11 6 6 10 14 20 26 25 29 26 28 26 22 25 19 25 28 26 22 21 13 Ballistic Cannon 2 | . 20 14 . . . 3 . . . . . . . . . . . . . . . . . . . . . . . . 1 . 4 Peak Build Rating 284 | 9 13 15 23 21 40 53 53 56 56 56 66 68 77 77 77 76 85 107 107 118 128 135 134 138 153 152 165 178 178 181 197 206 284 Average Rating 92 | 5 10 13 20 20 31 42 47 54 55 55 53 65 73 73 74 74 80 95 106 108 127 131 133 134 150 149 160 173 178 177 191 200 235 On Entrance 92 | . 7 13 15 20 21 37 53 48 56 56 56 65 65 77 73 76 75 85 106 107 118 128 133 134 138 151 150 156 178 178 173 191 203 Naked Turns . | . . . . . . . . . . . . . . . . . . . . . . . . . . . . . . . . . . Heaviest Build 227 | 14 92 94 100 101 112 143 141 133 133 129 136 126 155 155 152 152 151 151 146 150 152 192 161 168 186 184 190 196 193 193 203 227 227 Greatest Support 170 | 40 40 40 69 66 66 28 28 40 40 40 40 40 56 56 56 56 56 160 160 160 160 160 160 160 160 160 160 150 150 150 120 120 170 Greatest Overweight (x) 48 | . 2 2 2 1 3 5 5 3 3 3 4 3 3 2 2 2 2 48 . . . 1 1 1 1 1 1 1 1 1 3 1 1 Average Overweight (x) 1 | . 1 2 1 1 2 3 4 2 3 3 2 2 2 2 2 2 2 4 . . . . . . 1 1 1 1 1 1 1 1 . Largest Inventory Capacity 25 | 8 25 25 25 25 25 25 25 25 25 25 25 25 25 25 25 25 25 25 25 25 25 25 25 25 25 25 25 25 25 25 25 25 25 Average Capacity 24 | 7 24 25 25 25 25 25 25 25 25 25 25 25 25 25 25 25 25 25 25 25 25 25 25 25 25 25 25 25 25 25 25 25 25 Most Carried 25 | 8 25 25 25 25 25 25 25 25 25 25 25 25 25 25 25 25 25 25 25 25 24 25 25 25 25 25 25 25 25 25 25 25 25 Average Carried 24 | 4 22 24 24 24 24 24 24 24 24 24 24 24 24 25 24 24 24 23 24 24 23 24 24 24 23 24 24 24 25 24 24 24 24 Final Capacity 25 | 8 25 25 25 25 25 25 25 25 25 25 25 25 25 25 25 25 25 25 25 25 25 25 25 25 25 25 25 25 25 25 25 25 25 Final Carried 25 | 8 25 25 25 25 25 25 23 25 25 25 25 25 25 25 25 25 25 25 25 25 23 25 24 25 25 25 25 25 25 25 25 24 23 Class Distribution -------------------- 28% | Tank 19% | Scavenger-Tank 13% | Botlord-Executioner 13% | Mutant 7% | Scavenger-Executioner 4% | Commander-Tank 4% | Scavenger-Gunner 3% | Gunner 3% | Bothacker-Executioner Dominant Class ---------------- Mutant | -10/Materials Mutant | -10/Mines Tank | -9/Materials Scavenger-Tank | -9/Mines Tank | -8/Materials Tank | -8/Garrison Tank | -8/Materials Tank | -7/Factory Tank | -7/Lower Caves Tank | -7/Lower Caves Gunner | -7/Data Miner Scavenger-Gunner | -6/Proximity Caves Scavenger-Tank | -6/Factory Gunner | -6/Waste Gunner | -6/Factory Gunner | -6/Extension Commander-Tank | -6/Cetus Commander-Tank | -6/Archives Scavenger-Tank | -6/Hub_04(d) Scavenger-Tank | -6/Garrison Scavenger-Tank | -5/Factory Scavenger-Tank | -5/Garrison Scavenger-Tank | -5/Factory Scavenger-Tank | -5/Garrison Scavenger-Tank | -4/Factory Botlord-Tank | -4/Garrison Botlord-Executioner | -3/Research Scavenger-Executioner | -3/Garrison Botlord-Executioner | -3/Research Botlord-Executioner | -3/DSF Botlord-Executioner | -2/Research Botlord-Executioner | -2/Quarantine Botlord-Executioner | -2/Protoforge Resources | -11 -10 -10 -9 -9 -8 -8 -8 -7 -7 -7 -7 -6 -6 -6 -6 -6 -6 -6 -6 -6 -5 -5 -5 -5 -4 -4 -3 -3 -3 -3 -2 -2 -2 ----------- Run | Yrd Mat Min Mat Min Mat Gar Mat Fac Low Low Dat Pro Fac Was Fac Ext Cet Arc Hub Gar Fac Gar Fac Gar Fac Gar Res Gar Res DSF Res Qua Frg Matter Collected 31065 | 297 695 278 1605 247 1316 1129 984 1923 241 516 301 738 611 . 146 822 158 336 276 687 27 618 359 421 73 1071 485 2225 . 417 1162 1793 9108 Remotely 6539 | . . . . . . . . . . . . . . . . . . . 106 . . 21 180 73 . 292 . 867 . 101 657 708 3534 Salvage Created 36343 | 109 881 278 2642 588 882 1095 1132 1973 . 446 421 1013 647 . 278 1123 320 453 558 840 27 694 351 668 73 918 836 2507 . 695 1817 1903 10175 Parts 1756 | 12 67 18 159 30 31 79 41 98 . 24 19 32 33 . 10 53 12 33 34 38 2 33 22 44 8 48 27 114 . 39 87 105 404 Haulers Intercepted 16 | . 2 . 6 . 2 . 2 1 . . . . 1 . . . . . 1 . . . . . . . 1 . . . . . . Recyclers Shooed 8 | . . . 3 . 1 . . 3 . . . . . . . . . . . . . . . . . . . . . . 1 . . Parts Field Recycled . | . . . . . . . . . . . . . . . . . . . . . . . . . . . . . . . . . . Retrieved Matter . | . . . . . . . . . . . . . . . . . . . . . . . . . . . . . . . . . . Parts Self-Destructed 50 | . . . . . . . . . . 24 . 26 . . . . . . . . . . . . . . . . . . . . . Prevented . | . . . . . . . . . . . . . . . . . . . . . . . . . . . . . . . . . . Kills | -11 -10 -10 -9 -9 -8 -8 -8 -7 -7 -7 -7 -6 -6 -6 -6 -6 -6 -6 -6 -6 -5 -5 -5 -5 -4 -4 -3 -3 -3 -3 -2 -2 -2 ------- Run | Yrd Mat Min Mat Min Mat Gar Mat Fac Low Low Dat Pro Fac Was Fac Ext Cet Arc Hub Gar Fac Gar Fac Gar Fac Gar Res Gar Res DSF Res Qua Frg Combat Hostiles Destroyed 586 | . 21 7 43 6 9 33 15 22 . 9 4 31 8 . 2 17 4 2 7 20 . 11 10 15 3 19 9 39 . 12 20 27 161 Melee 1 | . . . . . . . . . . . . . . . . . . . . . . . . . . . . . . . . . 1 Guns 366 | . 6 1 33 6 9 27 14 22 . 9 . 5 4 . . 7 . 2 7 20 . 11 10 11 3 19 5 36 . 12 19 27 41 Cannons 139 | . 12 3 . . . 5 . . . . 2 5 4 . 2 6 1 . . . . . . . . . 2 3 . . 1 . 93 AOE 68 | . 3 3 10 . . . 1 . . . . 21 . . . 4 . . . . . . . 4 . . . . . . . . 22 Classes Destroyed 30 | 2 7 2 2 . . 4 . 2 . . . 2 . . . . . . 1 . . . . . . 1 . 1 . . . . 6 Worker 22 | . 2 . 4 1 1 . 1 6 . . . . . . 2 . . . 4 . . . 1 . . . . . . . . . . Builder 18 | . 1 . 4 . 1 . 1 2 . . . . . . . 2 . . 2 . . . . . . . 1 . . . 1 2 1 Tunneler 8 | 3 1 . 1 2 . . . . . . . . 1 . . . . . . . . . . . . . . . . . . . . Hauler 16 | . 2 . 6 . 2 . 2 1 . . . . 1 . . . . . 1 . . . . . . . 1 . . . . . . Recycler 36 | 1 2 2 9 2 3 . 4 8 . . . . . . 1 1 . . . . . . . . . . 1 . . . 2 . . Carrier 3 | . . . . . . . . . . . . . . . . . . . . . . . . . . . . . . . . . 3 Minesweeper 1 | . . . . . . . . . . . . 1 . . . . . . . . . . . . . . . . . . . . . Mechanic 1 | . . . . . . . . . . . . . . . . . . . . . . . . . . . . . . . . . 1 Operator 22 | . 1 . 2 . 1 . 1 2 . . . . 1 . 1 . . 9 1 . 1 . . . . . 1 . . . 1 . . Drone 9 | . . . . . . . . . . . . 2 . . . . . . . . . . . . . . . . . . . . 7 Watcher 10 | . 3 . 5 . . . 1 . . . . . . . . 1 . . . . . . . . . . . . . . . . . Swarmer 110 | . 6 3 10 . 3 11 4 . . . . 11 1 . . 3 . . 1 11 . . 7 5 3 5 2 11 . 4 . 5 4 Cutter 7 | . . . . . . 3 . . . . . . . . . . . . . . . . . . . 1 . . . 3 . . . Saboteur 11 | . . . . . . . . . . . . . . . . . . . . . . . . . . 3 . . . . . . 8 Grunt 208 | . 15 . 21 6 2 9 8 12 . 6 . 10 . . . 7 . . 3 3 . 5 . 2 . 8 . 15 . 4 6 11 55 Brawler 20 | . . . . . . . . 1 . . . 3 1 . . 1 . . . 2 . . . . . . . . . . 1 . 11 Duelist 21 | . . . 1 . . . . . . 1 . 4 1 . . 1 . . . . . . . . . . . 1 . . 1 1 10 Protector 5 | . . . 1 . . 1 . . . . . . . . . . . . . . . . . . . . . . . . . . 3 Researcher 4 | . . . . . . . . . . . . . . . . . . . . . . . . . . . . . . . . . 4 Sentry 63 | . . 2 10 . 3 4 3 2 . 1 . 2 2 . 2 2 . 2 . 3 . 3 1 2 . . 1 5 . . 1 . 12 Demolisher 5 | . . 2 . . . 2 . . . . . . . . . . . . . . . . . . . . . 1 . . . . . Specialist 2 | . . . . . . 1 . . . . . . . . . . . . 1 . . . . . . . . . . . . . . Hunter 26 | . . . . . . . . 1 . . . . 2 . . 2 . . 1 . . 2 1 2 . . 3 2 . . 6 2 2 Programmer 53 | . . . . . . 1 . 6 . 1 . . . . . . . . . 1 . . 1 3 . 2 2 1 . . 5 8 22 Heavy 2 | . . . . . . . . . . . . . . . . . . . 1 . . . . . . . . . . 1 . . . Q-Series 1 | . . . . . . . . . . . . . . . . . . . . . . . . . . . . . . . . . 1 Behemoth 6 | . . . . . . 1 . . . . . . 1 . . 1 . . . . . 1 . . . . 1 1 . . . . . Cetus Guard 4 | . . . . . . . . . . . . . . . . . 4 . . . . . . . . . . . . . . . . Enhanced Grunt 4 | . . . . . . . . . . . 4 . . . . . . . . . . . . . . . . . . . . . . Decapitator 5 | . . . . . . . . . . . . . . . . . . . . . . . . . . . . . . . . . 5 Tracker 5 | . . . . . . . . . . . . . . . . . . . . . . . . . . . . . . . . . 5 Combat Programmer 5 | . . . . . . . . . . . . . . . . . . . . . . . . . . . . . . . . . 5 Investigator 1 | . . . . . . . . . . . . . . . . . . . . . . . . . . . . . . . . . 1 Executioner 2 | . . . . . . . . . . . . . . . . . . . . . . . . . . . . 2 . . . . . Alpha 7 2 | . . . . . . . . . . . . . . . . . . . . . . . . . . . . . . . . . 2 V-Series 9 | . . . . . . . . . . . . . . . . . . . . . . . . . . . . . . . . . 9 Butcher 1 | . . . . . . . . . . . . . . . . 1 . . . . . . . . . . . . . . . . . Infiltrator 1 | . . . . . . . . . . . . . . . . . . . . . . . . 1 . . . . . . . . . Best Kill Streak 14 | 3 4 3 6 3 4 4 8 9 . 4 1 9 4 . 2 6 3 7 10 6 1 5 7 6 3 13 4 6 . 8 6 8 14 Combat Bots Only 13 | . 3 3 6 3 3 4 4 4 . 4 1 9 3 . 1 6 3 2 3 6 . 5 7 6 3 13 3 6 . 8 6 8 13 Max Kills in Single Turn 4 | 1 3 2 3 2 2 2 2 2 . 2 1 3 1 . 2 3 1 1 2 1 1 1 2 4 2 2 2 2 . 3 3 2 4 Gunslinging 2 | . . . 1 1 . 1 1 . . 1 . . . . . . . . . . . . 1 1 1 1 . 1 . 2 . 1 1 Exploded 4 | . 3 2 3 . . . 1 . . . . 3 . . . 2 . . . . . . . 4 . . . . . . . . 4 Melee 1 | . . . . . . . . . . . . . . . . . . . . . . . . . . . . . . . . . 1 Uniques/NPCs Destroyed 1 | . . . . . 1 . . . . . . . . . . . . . . . . . . . . . . . . . . . . 7R-MNS (-8/Materials) Combat | -11 -10 -10 -9 -9 -8 -8 -8 -7 -7 -7 -7 -6 -6 -6 -6 -6 -6 -6 -6 -6 -5 -5 -5 -5 -4 -4 -3 -3 -3 -3 -2 -2 -2 -------- Run | Yrd Mat Min Mat Min Mat Gar Mat Fac Low Low Dat Pro Fac Was Fac Ext Cet Arc Hub Gar Fac Gar Fac Gar Fac Gar Res Gar Res DSF Res Qua Frg Hostile Shots Fired 2649 | . 96 23 165 13 108 156 32 98 . 59 41 91 50 . 9 129 15 1 17 113 . 36 23 26 14 41 49 219 . 85 73 117 750 Missed 743 | . 27 6 40 3 12 42 7 22 . 22 13 38 14 . 1 56 9 . 5 34 . 11 7 5 3 13 16 59 . 30 28 28 192 Intercepted 14 | . . . . . . . . . . . . . . . . . . . . . . . . . . . . . . . . . 14 Hits 1906 | . 69 17 125 10 96 114 25 76 . 37 28 53 36 . 8 73 6 1 12 79 . 25 16 21 11 28 33 160 . 55 45 89 558 Melee 44 | . . . . . . 9 . . . 2 . . 4 . . 1 . . . . . . . . . . . . . 6 . . 22 Projectile 1862 | . 69 17 125 10 96 105 25 76 . 35 28 53 32 . 8 72 6 1 12 79 . 25 16 21 11 28 33 160 . 49 45 89 536 AOE 27 | . . 4 . . . 8 . . . . . . . . . . . . . . . . . . . 1 . 1 . 3 . . 10 Critical Strikes 86 | . 2 . 6 . 3 7 1 3 . . . 1 1 . . 4 1 . 2 1 . 1 . . 1 . 1 5 . 3 1 4 38 Actively Blocked 54 | . . . . . . . . . . . . . . . . . . . . . . 1 . . 1 . 1 5 . 3 1 4 38 Part Disruptions 8 | . . . . . . . . . . . 1 . . . . . . . . . . . . . . . . . . . 2 . 5 Damage Taken 38046 | . 764 426 1547 86 1873 1914 400 869 . 550 1299 717 531 . 173 829 82 40 204 532 . 633 278 485 162 625 981 3359 . 1761 903 2118 13905 Core 3215 | . 125 53 136 8 283 180 64 42 . 51 120 57 8 . 47 82 . . . 63 . 20 . 81 . 92 . 156 . 104 41 445 957 Absorbed by Shields 3318 | . . . 322 34 80 288 . 59 . . . . 107 . . 310 79 12 84 457 . . . 29 . . . . . . . . 1457 Reduced by Siege Mode 72 | . . . . . . . . . . . . . . . . . . . . . . 15 . . . . . 7 . . . . 50 Redirected to Core 802 | . . . . . . . . . . . . . . . . . . . . . . . . . . . . . . . . 394 408 Redirected to Shielding 283 | . 6 8 . . . . . . . . . . . . . . . . . . . . . . . . . . . . . . 269 Ignored by Resistances 214 | . . . . . 159 . . . . 55 . . . . . . . . . . . . . . . . . . . . . . . Regen/Repaired (Parts) 4647 | . 235 . 24 . 70 . 335 132 . . . . . . . . . . . . . . . . 80 . . 1877 120 742 . . 1032 Core Remaining (%) 66 | 100 . 28 . 64 . . 4 . . . . 61 . . . . . . . 76 . . . 89 . 92 . . . 80 . . . Volleys Fired 1565 | 7 71 15 119 18 64 89 48 95 4 26 22 50 31 6 23 58 13 49 16 46 1 33 17 20 4 51 23 104 . 13 47 84 298 Largest 6 | 2 2 2 3 3 4 4 4 4 1 4 4 4 4 1 4 4 4 4 4 4 5 5 5 5 5 5 6 6 . 6 6 6 6 Hottest 570 | 40 60 53 69 69 96 314 309 100 30 100 207 110 220 5 235 233 198 180 129 129 169 171 171 171 171 171 339 328 . 217 242 233 570 Shots Fired 5052 | 14 140 29 338 52 248 268 193 375 6 105 43 122 87 6 42 152 26 62 64 142 5 105 65 68 20 163 112 426 . 77 201 273 1023 Gun 3829 | 14 67 16 332 52 248 207 190 374 2 105 5 56 45 . 6 62 2 17 64 131 5 90 60 60 20 142 79 372 . 77 169 229 531 Cannon 1099 | . 72 10 . . . 61 3 . 4 . 38 49 41 . 33 65 24 45 . 11 . 15 . 7 . 9 33 47 . . 32 40 460 Launcher 45 | . 1 3 6 . . . . . . . . 17 . . . 5 . . . . . . . 1 . . . . . . . . 12 Special 79 | . . . . . . . . 1 . . . . 1 6 3 20 . . . . . . 5 . . 12 . 7 . . . 4 20 Kinetic 4059 | 14 139 26 332 52 248 220 191 374 2 105 5 56 35 . 6 62 2 17 64 131 5 90 60 60 20 142 79 372 . 77 187 234 652 Thermal 813 | . . . . . . 48 2 . 4 . 6 49 51 . 33 65 . 45 . 11 . 15 . 7 . 9 33 47 . . 14 35 339 Explosive 45 | . 1 3 6 . . . . . . . . 17 . . . 5 . . . . . . . 1 . . . . . . . . 12 Electromagnetic 56 | . . . . . . . . . . . 32 . . . . . 24 . . . . . . . . . . . . . . . . Robot Hit Streak 19 | 3 7 9 13 11 11 17 14 8 . 14 17 9 13 9 11 18 14 7 11 15 4 11 13 18 5 16 13 17 . 10 14 13 19 Robot Miss Streak 12 | 1 6 3 12 3 4 4 4 5 . 4 3 9 2 . 1 3 3 2 7 4 . 6 5 2 2 4 4 9 . 7 5 4 6 Penetration Max 2 | . . . . . . . . . . . . . . . . 1 . . 1 1 . . 1 1 . 1 1 2 . 1 2 1 2 Secondary Targets 68 | . . . 7 1 . 7 1 3 . 2 . . . . . 1 . . 1 4 . 1 2 4 3 4 . 8 . 7 3 6 3 Max Gunslinging Chain 2 | . . . 1 1 . 1 1 1 . 1 . . . . . 1 . . 1 1 . 1 1 1 2 1 . 1 . 2 1 2 1 Shots Hit Robots 2720 | 10 78 21 196 28 150 162 113 198 . 64 31 51 49 6 16 101 21 37 38 67 3 50 32 41 12 80 55 244 . 47 109 133 477 Core Hits 1421 | 6 40 14 98 17 41 59 38 72 . 20 16 69 29 . 8 53 11 24 29 36 1 19 14 20 3 34 21 106 . 26 59 60 378 Critical Kills 70 | . 1 . . . . . . 1 . . . . . . . 3 . . . 1 . 4 1 3 . 4 2 3 . . 1 6 40 Critical Parts Destroyed 70 | . . 1 2 . . . 3 1 . . . . 1 . . . . 1 3 2 . 2 1 2 1 5 2 2 . . 1 6 34 Critical Strikes 170 | . 4 1 2 . . . 3 2 . . . . 1 . . 3 1 1 3 3 . 6 2 5 1 9 4 6 . . 4 13 96 Meltdown 5 | . . . . . . . . . . . . . . . . . . . . . . . . . . . 2 . . . . . 3 Destroy 148 | . 1 1 1 . . . 3 2 . . . . 1 . . 3 . 1 3 3 . 6 2 5 1 9 2 6 . . 2 12 84 Blast 15 | . 3 . . . . . . . . . . . . . . . . . . . . . . . . . . . . . 2 1 9 Corrupt 1 | . . . . . . . . . . . . . . . . . 1 . . . . . . . . . . . . . . . . Smash 1 | . . . 1 . . . . . . . . . . . . . . . . . . . . . . . . . . . . . . Melee Attacks 71 | . . . 6 . 2 20 . 1 5 8 27 2 . . . . . . . . . . . . . . . . . . . . . Impact 6 | . . . 6 . . . . . . . . . . . . . . . . . . . . . . . . . . . . . . Slashing 65 | . . . . . 2 20 . 1 5 8 27 2 . . . . . . . . . . . . . . . . . . . . . Piercing . | . . . . . . . . . . . . . . . . . . . . . . . . . . . . . . . . . . Sneak Attacks 3 | . . . 1 . 1 . . . . . 1 . . . . . . . . . . . . . . . . . . . . . . Combat Hostiles . | . . . . . . . . . . . . . . . . . . . . . . . . . . . . . . . . . . Follow-up Attacks . | . . . . . . . . . . . . . . . . . . . . . . . . . . . . . . . . . . Damage Inflicted 95355 | 97 1280 437 4532 434 1718 3015 2096 3625 . 1130 644 4099 1205 . 649 3683 693 1238 1446 1925 85 1415 752 1600 368 1899 1817 7188 . 1814 4236 4398 35837 Guns 53230 | 97 420 179 3082 434 1621 2089 1952 3625 . 1130 50 457 692 . 77 1008 . 223 1439 1875 85 1415 752 1147 368 1899 1064 6552 . 1814 3806 4150 9728 Cannons 27079 | . 718 142 . . . 926 31 . . . 509 604 513 . 300 1633 554 1015 . . . . . . . . 741 636 . . 430 248 18079 Explosions 14670 | . 117 113 1357 . . . 113 . . . . 3038 . . 272 1042 139 . . . . . . 453 . . . . . . . . 8026 Melee 232 | . . . 92 . 55 . . . . . 85 . . . . . . . . . . . . . . . . . . . . . . Ramming 144 | . 25 3 1 . 42 . . . . . . . . . . . . . 7 50 . . . . . . 12 . . . . . 4 Kinetic 60668 | 97 1138 321 3082 434 1621 2297 1952 3625 . 1130 50 457 487 . 77 1008 . 223 1439 1875 85 1415 752 1147 368 1899 1064 6552 . 1814 4236 4398 15625 Thermal 19342 | . . . 551 . . 718 31 . . . 74 604 718 . 300 1633 139 1015 . . . . . . . . 741 636 . . . . 12182 Explosive 13959 | . 117 113 785 . . . 113 . . . . 3038 . . 272 1042 . . . . . . . 453 . . . . . . . . 8026 Electromagnetic 1010 | . . . 21 . . . . . . . 435 . . . . . 554 . . . . . . . . . . . . . . . . Impact 92 | . . . 92 . . . . . . . . . . . . . . . . . . . . . . . . . . . . . . Slashing 140 | . . . . . 55 . . . . . 85 . . . . . . . . . . . . . . . . . . . . . . Piercing . | . . . . . . . . . . . . . . . . . . . . . . . . . . . . . . . . . . Highest Corruption 68 | . 1 1 5 5 . 5 5 5 5 5 20 23 . 16 16 13 13 13 . 28 . . . . . . 2 2 2 2 3 13 68 Average Corruption 10 | . 1 1 5 5 . 4 5 2 5 5 11 22 . 10 14 11 13 8 . 1 . . . . . . 1 2 2 2 2 8 33 Corruption Purged 41 | . . . . . . . . . . . . . . . 5 . . 36 . . . . . . . . . . . . . . . Corruption Blocked . | . . . . . . . . . . . . . . . . . . . . . . . . . . . . . . . . . . Effects 852 | . . 9 75 28 . 45 29 24 34 19 23 74 . 6 17 39 15 24 . 12 . . . . . . 3 27 1 3 15 57 273 Message Errors 187 | . . 4 17 6 . 8 7 8 11 4 5 20 . 2 5 12 4 2 . 5 . . . . . . 1 3 . . 5 14 44 Matter Fused 177 | . . 4 18 7 . 9 6 3 9 4 4 18 . . 5 4 3 8 . 3 . . . . . . 1 9 . 1 2 14 45 Heat Flow Errors 100 | . . . 6 2 . 10 2 5 3 3 3 4 . 1 1 6 2 4 . 1 . . . . . . 1 5 1 . . 5 35 Energy Discharges 77 | . . . 6 2 . 3 5 1 3 1 1 9 . 1 1 4 . 1 . . . . . . . . . 4 . 1 3 7 24 Parts Rejected 6 | . . . 1 . . . 1 . . . 1 1 . . . . 1 . . . . . . . . . . . . 1 . . . Parts Fused 9 | . . . . 1 . 1 . . . . . 2 . . . 1 . . . . . . . . . . . . . . . 1 3 Data Loss (minor) 84 | . . . 12 3 . 3 3 2 5 1 1 10 . 1 2 3 1 2 . 2 . . . . . . . 2 . . 4 6 21 Data Loss (major) 40 | . . . 5 3 . 2 1 1 . 3 3 3 . 1 . 2 2 1 . . . . . . . . . 1 . . . 2 10 Misfires 32 | . . 1 1 . . 5 2 . 2 1 . 1 . . 1 2 . 1 . . . . . . . . . 2 . . . 2 11 Alerts 26 | . . . 3 2 . 1 1 2 1 2 . 1 . . 2 1 . 2 . 1 . . . . . . . . . . . 3 4 Misdirections 8 | . . . . . . . . . . . 1 1 . . . . . . . . . . . . . . . . . . . . 6 Weapon Failures 106 | . . . 6 2 . 3 1 2 . . 4 4 . . . 4 2 3 . . . . . . . . . 1 . . 1 3 70 Overload Shots 21 | . . . . . . . . . . . . . . . . . . . . . . . . . . . . . . . . . 21 Overflow Damage 2454 | . 22 . 301 . 31 4 . . . . 25 67 15 . 69 20 . 6 . . . . . 32 . . 30 21 . . . . 1811 Projectiles 1527 | . 22 . . . . 4 . . . . . . 15 . . 10 . 6 . . . . . . . . 30 21 . . . . 1419 Explosions 779 | . . . 209 . . . . . . . . 67 . . 69 10 . . . . . . . 32 . . . . . . . . 392 Melee 148 | . . . 92 . 31 . . . . . 25 . . . . . . . . . . . . . . . . . . . . . . Knockbacks 72 | . 11 . 1 . 2 6 . . . . . . . . . . . . 1 . . . . . . . . . . . 6 4 41 Impact 4 | . . . 1 . 2 . . . . . . . . . . . . . 1 . . . . . . . . . . . . . . Kinetic 64 | . 10 . . . . 4 . . . . . . . . . . . . . . . . . . . . . . . . 6 4 40 Secondary 4 | . 1 . . . . 2 . . . . . . . . . . . . . . . . . . . . . . . . . . 1 Self-Inflicted Damage 1262 | . 12 117 328 . 8 . 19 . . . . 10 . . 115 . . . . . . . . . . . . . . . . . 653 Shots 28 | . 1 3 5 . . . 1 . . . . 1 . . 2 . . . . . . . . . . . . . . . . . 15 Rammed 12 | . 4 2 1 . 2 . . . . . . . . . . . . . . 2 . . . . . . 1 . . . . . . Targets Rammed 16 | . 5 2 2 . 2 . . . . . . . . . . . . . 1 2 . . . . . . 1 . . . . . 1 Kicked 1 | . . . . . . . . . . . . . . . . . . . . . . . . . . . . . . . . . 1 Crushed 3 | . 1 . 1 . . . . . . . . . . . . . . . 1 . . . . . . . . . . . . . . Highest Temperature 483 | . 69 14 204 271 299 383 279 244 251 234 348 238 447 248 242 319 206 248 108 144 . 327 483 200 26 65 234 324 . . . . 433 Average Temperature 77 | . 17 9 27 48 121 96 85 61 118 81 98 39 116 135 51 90 81 81 33 37 . 63 164 68 19 22 68 89 . . . . 112 Received Heat Transfer 5287 | . 297 18 478 46 793 313 216 266 . 180 . 132 56 . 18 280 . . 46 88 . 126 9 42 . 75 9 309 . 42 18 162 1268 Effects 17 | . . . . . . 4 . . . . . . 2 . . 1 . . . . . . 2 . . . . 3 . . . . 5 Shutdowns 4 | . . . . . . . . . . . . . 2 . . . . . . . . . 2 . . . . . . . . . . Energy Bleed 2 | . . . . . . 1 . . . . . . . . . 1 . . . . . . . . . . . . . . . . . Interference 9 | . . . . . . 2 . . . . . . . . . . . . . . . . . . . . . 3 . . . . 4 Short Circuit 1 | . . . . . . 1 . . . . . . . . . . . . . . . . . . . . . . . . . . . Damage (minor) 1 | . . . . . . . . . . . . . . . . . . . . . . . . . . . . . . . . . 1 Siege Activations 3 | . . . . . . . . . . . . . . . . . . . . . . 1 . . . . . 1 . . . . 1 Total Turns 29 | . . . . . . . . . . . . . . . . . . . . . . 8 . . . . . 9 . . . . 12 Longest Duration 12 | . . . . . . . . . . . . . . . . . . . . . . 8 . . . . . 9 . . . . 12 Martial Activations . | . . . . . . . . . . . . . . . . . . . . . . . . . . . . . . . . . . Shielding Activations . | . . . . . . . . . . . . . . . . . . . . . . . . . . . . . . . . . . Robots Disrupted . | . . . . . . . . . . . . . . . . . . . . . . . . . . . . . . . . . . Combat Hostiles . | . . . . . . . . . . . . . . . . . . . . . . . . . . . . . . . . . . Robots Corrupted 7 | . . . 1 . 1 . . . . . 2 . . . . . 3 . . . . . . . . . . . . . . . . Combat Hostiles 5 | . . . . . . . . . . . 2 . . . . . 3 . . . . . . . . . . . . . . . . Parts Fried 18 | . . . . . 1 . . . . . 12 . . . . 1 4 . . . . . . . . . . . . . . . . Impact Corruptions 4 | . . . 3 . 1 . . . . . . . . . . . . . . . . . . . . . . . . . . . . Robots Melted 6 | . . . . . . 1 . . . . . . . . . . . . . . . . . . . . 2 . . . . . 3 Combat Hostiles 6 | . . . . . . 1 . . . . . . . . . . . . . . . . . . . . 2 . . . . . 3 Parts Melted 29 | . . . . . . 3 . . . . . . 3 . . 4 . 2 . . . 1 . . . . 8 . . . . . 8 Heat Transferred 15505 | . . . 350 . . 1092 37 . . . 148 777 1017 . 370 1965 100 1450 . . . . . . . . 370 370 . . . . 7459 Parts Sabotaged 7 | . . . . . . . . . . . . . . . . . . . . . . . . . . . . . . . . . 7 Parts Stolen . | . . . . . . . . . . . . . . . . . . . . . . . . . . . . . . . . . . Parts Stripped . | . . . . . . . . . . . . . . . . . . . . . . . . . . . . . . . . . . Power Chain Reactions 2 | . . . . . . . . . . . . . . . . . 1 . . . . . . . 1 . . . . . . . . Alert | -11 -10 -10 -9 -9 -8 -8 -8 -7 -7 -7 -7 -6 -6 -6 -6 -6 -6 -6 -6 -6 -5 -5 -5 -5 -4 -4 -3 -3 -3 -3 -2 -2 -2 ------- Run | Yrd Mat Min Mat Min Mat Gar Mat Fac Low Low Dat Pro Fac Was Fac Ext Cet Arc Hub Gar Fac Gar Fac Gar Fac Gar Res Gar Res DSF Res Qua Frg Maximum Alert Level 5 | . 1 . 3 2 . 4 2 1 . . . . 2 . . 2 2 2 3 5 3 3 3 3 2 4 3 5 3 3 3 3 5 Low Security (%) 36 | 100 96 100 21 54 100 12 52 62 . . . . . 100 100 95 . 58 28 . . . . . . . . . . . . . . Level 1 12 | . 3 . 20 39 . 17 41 37 . . . . 92 . . 2 10 33 13 . . . . . . . . 2 . . . 14 . Level 2 18 | . . . 35 6 . 20 5 . . . . . 7 . . 1 89 7 34 9 . 12 70 34 100 58 79 19 . . 49 35 14 Level 3 18 | . . . 22 . . 40 . . . . . . . . . . . . 23 20 100 87 29 65 . 26 20 28 100 100 50 49 20 Level 4 5 | . . . . . . 9 . . . . . . . . . . . . . 27 . . . . . 14 . 40 . . . . 10 Level 5 7 | . . . . . . . . . . . . . . . . . . . . 42 . . . . . . . 9 . . . . 48 High Security . | . . . . . . . . . . . . . . . . . . . . . . . . . . . . . . . . . 5 Max Security . | . . . . . . . . . . . . . . . . . . . . . . . . . . . . . . . . . . Sterilizations 1 | . . . . . . . . . . . . . . . . . . . . . . . . . . . . . . 1 . . . Peak Influence 4335 | 5 204 114 956 439 92 1178 580 357 . . . . 412 111 87 563 561 421 942 1944 1040 953 857 1069 636 1190 724 1704 958 904 992 789 4335 Initial 1020 | . . 76 . 369 23 16 573 156 . . . . 402 111 35 1 311 204 . 645 1020 674 499 555 560 438 669 366 958 711 508 533 411 Average 613 | 1 50 19 467 213 21 679 221 135 . . . . 335 82 36 112 464 170 470 1412 1005 770 618 873 560 729 647 1079 955 809 708 594 2018 Influence Increases 22621 | 20 706 218 1605 190 305 1252 600 732 . 215 . 686 560 . 164 1048 360 317 1103 1419 43 409 685 534 166 752 330 1378 . 223 794 771 5036 Destroy 0b10 Robot/C 11595 | . 420 140 840 120 160 640 300 440 . 180 . 600 160 . 40 540 160 80 460 600 . 195 315 330 45 390 150 645 . 180 300 435 2730 Destroy 0b10 Robot/NC 790 | 20 60 10 160 35 40 5 50 95 . . . 25 15 . 20 25 10 45 55 . 4 . 16 . . . 20 . . 4 16 8 52 Destroy Leader 1804 | . 110 20 232 20 44 20 66 132 . 20 . 40 42 . 20 74 . . 94 38 . 16 76 32 . 24 42 40 . 24 64 72 442 Allied During Kill 2202 | . . . . . . 3 . . . . . 21 . . . 282 165 125 432 591 2 26 97 80 . 110 18 84 . 15 . 10 141 Successful Hack 356 | . 15 . 22 . 12 42 37 59 . . . . 14 . 3 17 9 . 8 14 11 11 . 12 2 . 36 11 . . 21 . . Select Force Hacks 83 | . 60 . . . . . . . . . . . . . . . . . . . . . . . 23 . . . . . . . . Disable Machine 1278 | . 30 15 165 15 45 15 45 . . . . . 15 . 30 45 . 60 15 39 24 12 12 . 48 12 . 24 . . 72 132 408 Anti-Garrison Action 1280 | . . . . . . 400 . . . . . . . . . . . . . 88 . 113 113 . . 76 . 490 . . . . . Destroy Structure 2573 | . 11 33 126 . 4 97 42 6 . . . . 14 . 51 65 16 7 24 49 2 36 44 80 36 128 40 72 . . 321 114 1155 Advance Influence 300 | . . . . . . . . . . . . . 300 . . . . . . . . . . . . . . . . . . . . Lose Combat Pursuer 360 | . . . 60 . . 30 60 . . 15 . . . . . . . . 15 . . . 12 . 12 12 24 12 . . . . 108 Influence Decreases 18306 | 20 508 416 658 1076 341 99 1433 732 345 215 . 523 405 267 212 494 406 828 181 397 1024 419 844 259 609 188 1031 163 756 267 750 986 1454 Entered New Map 8149 | . . 122 . 578 38 9 605 189 129 . . . 61 207 16 2 246 307 . 277 924 289 454 239 509 188 521 123 746 237 396 415 322 Time Decay 8340 | 20 498 284 608 498 303 . 518 401 216 215 . 493 334 60 196 378 140 521 130 . 100 . 350 . 100 . 310 . 10 . 334 571 752 Lost Part 490 | . 10 10 50 . . 50 10 . . . . 10 10 . . 10 . . . . . 10 . . . . 10 . . 30 . . 280 Lost Ally 631 | . . . . . . 40 . . . . . 20 . . . . 20 . 51 120 . 120 40 20 . . 40 40 . . 20 . 100 Purge Threat 696 | . . . . . . . 300 142 . . . . . . . 104 . . . . . . . . . . 150 . . . . . . Squads Dispatched 126 | . 5 . 5 . 5 . 1 9 . . . 1 4 . 1 1 . . 8 . . . 11 . 1 . 3 . . 2 7 11 51 Investigation 13 | . 3 . 1 . 1 . . 2 . . . . 2 . . 1 . . 1 . . . . . 1 . 1 . . . . . . Extermination 23 | . . . . . . . . 4 . . . . 1 . 1 . . . . . . . 2 . . . . . . . 1 5 9 Reinforcement 32 | . 2 . 3 . 4 . 1 3 . . . . 1 . . . . . 4 . . . 2 . . . 2 . . 2 1 3 4 Assault 34 | . . . 1 . . . . . . . . 1 . . . . . . . . . . 4 . . . . . . . 2 3 23 Garrison 17 | . . . . . . . . . . . . . . . . . . . 3 . . . 3 . . . . . . . 3 . 8 Intercept 7 | . . . . . . . . . . . . . . . . . . . . . . . . . . . . . . . . . 7 Searches Triggered . | . . . . . . . . . . . . . . . . . . . . . . . . . . . . . . . . . . Construction Impeded 3 | . . . 1 . . . . . . . . . . . . . . . . . . . 1 . . . . . . . 1 . . Haulers Reinforced 4 | . . . . . . . . 1 . . . . . . . . . . 1 . . . 1 . . . 1 . . . . . . Active Scanning Responses . | . . . . . . . . . . . . . . . . . . . . . . . . . . . . . . . . . . Cargo Convoy Interrupts . | . . . . . . . . . . . . . . . . . . . . . . . . . . . . . . . . . . Stealth | -11 -10 -10 -9 -9 -8 -8 -8 -7 -7 -7 -7 -6 -6 -6 -6 -6 -6 -6 -6 -6 -5 -5 -5 -5 -4 -4 -3 -3 -3 -3 -2 -2 -2 --------- Run | Yrd Mat Min Mat Min Mat Gar Mat Fac Low Low Dat Pro Fac Was Fac Ext Cet Arc Hub Gar Fac Gar Fac Gar Fac Gar Res Gar Res DSF Res Qua Frg Distress Signals 35 | . 1 . 6 . 3 . 4 1 . . . . . . . 4 2 . 2 . . . . . . . 8 . . . 3 . 1 Communications Jammed . | . . . . . . . . . . . . . . . . . . . . . . . . . . . . . . . . . . Distress Signals . | . . . . . . . . . . . . . . . . . . . . . . . . . . . . . . . . . . Times Spotted 817 | . 29 7 50 4 11 36 32 27 . 10 4 32 8 6 3 32 10 25 20 32 1 13 26 21 4 19 14 49 . 13 22 31 226 Peak Tracking Total 19 | . 5 4 5 2 3 5 5 4 . 4 2 9 3 3 1 5 5 1 5 8 1 5 4 7 4 8 5 5 . 9 6 6 19 Tactical Retreats 19 | . . . 3 . . 2 3 . . 1 . . . . . . . . 1 . . . 1 . 1 1 1 1 . . . . 4 Traps | -11 -10 -10 -9 -9 -8 -8 -8 -7 -7 -7 -7 -6 -6 -6 -6 -6 -6 -6 -6 -6 -5 -5 -5 -5 -4 -4 -3 -3 -3 -3 -2 -2 -2 ------- Run | Yrd Mat Min Mat Min Mat Gar Mat Fac Low Low Dat Pro Fac Was Fac Ext Cet Arc Hub Gar Fac Gar Fac Gar Fac Gar Res Gar Res DSF Res Qua Frg Traps Triggered 52 | . 2 . . . . 3 . 10 . . . . 2 . . 3 . . 1 2 . 1 2 4 . . 1 11 . 2 1 1 6 Indirectly . | . . . . . . . . . . . . . . . . . . . . . . . . . . . . . . . . . . Trap Hack Attempts . | . . . . . . . . . . . . . . . . . . . . . . . . . . . . . . . . . . Triggered . | . . . . . . . . . . . . . . . . . . . . . . . . . . . . . . . . . . Disarmed . | . . . . . . . . . . . . . . . . . . . . . . . . . . . . . . . . . . Reprogrammed . | . . . . . . . . . . . . . . . . . . . . . . . . . . . . . . . . . . Reused . | . . . . . . . . . . . . . . . . . . . . . . . . . . . . . . . . . . Traps Extracted . | . . . . . . . . . . . . . . . . . . . . . . . . . . . . . . . . . . Installed . | . . . . . . . . . . . . . . . . . . . . . . . . . . . . . . . . . . Triggered . | . . . . . . . . . . . . . . . . . . . . . . . . . . . . . . . . . . Most Traps Carried 4 | . . . . . . . . . . . . 4 4 . . . . . . . . . . . . . . . . . . . . Machines | -11 -10 -10 -9 -9 -8 -8 -8 -7 -7 -7 -7 -6 -6 -6 -6 -6 -6 -6 -6 -6 -5 -5 -5 -5 -4 -4 -3 -3 -3 -3 -2 -2 -2 ---------- Run | Yrd Mat Min Mat Min Mat Gar Mat Fac Low Low Dat Pro Fac Was Fac Ext Cet Arc Hub Gar Fac Gar Fac Gar Fac Gar Res Gar Res DSF Res Qua Frg Machines Disabled 134 | . 2 1 11 1 3 4 3 . . . . 2 1 . 2 4 . 4 1 6 2 2 2 . 4 3 . 7 . . 6 11 52 Max in Single Turn 4 | . 1 1 4 1 1 1 1 . . . . 2 1 . 2 1 . 1 . 1 2 1 1 . 4 1 . 1 . . 1 1 2 Garrison Access 2 | . . . . . . . . . . . . . . . . . . . . . . . 2 . . . . . . . . . . Garrison Relay 10 | . . . . . . 2 . . . . . . . . . . . . . 2 . 1 . . . 1 . 4 . . . . . Energy Cycler 1 | . . . . . . . . . . . . . . . . 1 . . . . . . . . . . . . . . . . . Machines Repaired . | . . . . . . . . . . . . . . . . . . . . . . . . . . . . . . . . . . Machines Dismantled 6 | . . . . . . 1 . . . . . . . . . 1 . . . 1 . . . . . . . . . . 1 1 1 Machines Sabotaged . | . . . . . . . . . . . . . . . . . . . . . . . . . . . . . . . . . . Overloaded Fab Kills . | . . . . . . . . . . . . . . . . . . . . . . . . . . . . . . . . . . Hacking | -11 -10 -10 -9 -9 -8 -8 -8 -7 -7 -7 -7 -6 -6 -6 -6 -6 -6 -6 -6 -6 -5 -5 -5 -5 -4 -4 -3 -3 -3 -3 -2 -2 -2 --------- Run | Yrd Mat Min Mat Min Mat Gar Mat Fac Low Low Dat Pro Fac Was Fac Ext Cet Arc Hub Gar Fac Gar Fac Gar Fac Gar Res Gar Res DSF Res Qua Frg Machines Accessed 104 | . 8 . 11 . 6 5 9 10 . . 4 . 7 . 4 6 1 . 1 1 3 2 2 2 2 1 6 2 1 . 3 3 4 Terminals 70 | . 5 . 7 . 3 5 6 5 . . . . 4 . 3 6 1 . . 1 2 2 . 2 . 1 5 2 1 . 3 3 3 Fabricators 4 | . . . . . . . . 2 . . . . 2 . . . . . . . . . . . . . . . . . . . . Repair Stations 10 | . 1 . 2 . 1 . 2 1 . . . . 1 . 1 . . . . . . . . . 1 . . . . . . . . Recycling Units 2 | . 2 . . . . . . . . . . . . . . . . . . . . . . . . . . . . . . . . Scanalyzers 7 | . . . 2 . 1 . 1 2 . . . . . . . . . . . . . . 1 . . . . . . . . . . Garrison Access 7 | . . . . . 1 . . . . . . . . . . . . . 1 . 1 . 1 . 1 . 1 . . . . . 1 Total Hacks 241 | . 16 . 28 . 17 7 30 25 . . 25 . 12 . 8 12 2 . 3 2 6 3 2 3 5 2 11 5 1 . 5 5 6 Successful 127 | . 11 . 14 . 11 3 16 10 . . 25 . 3 . 1 5 1 . 2 1 3 1 1 2 5 . 4 1 1 . 1 2 3 Failed 114 | . 5 . 14 . 6 4 14 15 . . . . 9 . 7 7 1 . 1 1 3 2 1 1 . 2 7 4 . . 4 3 3 Catastrophic 29 | . 2 . 2 . 2 3 3 1 . . . . 4 . 1 1 . . . . . . . . . . 3 2 . . 2 2 1 Database Lockouts . | . . . . . . . . . . . . . . . . . . . . . . . . . . . . . . . . . . Manual 56 | . 11 . 7 . 7 . 9 3 . . . . 3 . 3 2 1 . 2 . 2 . . . 1 . 3 . . . . . 2 Terminals 141 | . 10 . 16 . 10 7 16 13 . . . . 6 . 5 12 2 . . 2 3 3 . 3 . 2 10 5 1 . 5 5 5 Fabricators 9 | . . . . . . . . 5 . . . . 4 . . . . . . . . . . . . . . . . . . . . Repair Stations 30 | . 4 . 3 . 2 . 11 3 . . . . 2 . 3 . . . . . . . . . 2 . . . . . . . . Recycling Units 2 | . 2 . . . . . . . . . . . . . . . . . . . . . . . . . . . . . . . . Scanalyzers 21 | . . . 9 . 4 . 3 4 . . . . . . . . . . . . . . 1 . . . . . . . . . . Garrison Access 13 | . . . . . 1 . . . . . . . . . . . . . 3 . 3 . 1 . 3 . 1 . . . . . 1 Terminal Hacks 72 | . 3 . 4 . 5 3 6 5 . . 25 . 1 . 1 4 1 . . 1 1 1 . 2 . . 2 1 1 . 1 2 2 Record 13 | . . . . . . . . . . . 11 . . . . . . . . . . . . . . . . . . . . 2 . Part Schematic 12 | . 1 . . . 1 . . 2 . . 8 . . . . . . . . . . . . . . . . . . . . . . Robot Schematic 4 | . 1 . . . . . . . . . 3 . . . . . . . . . . . . . . . . . . . . . . Robot Analysis 2 | . . . 2 . . . . . . . . . . . . . . . . . . . . . . . . . . . . . . Prototype ID Bank 11 | . . . 1 . 1 . 2 1 . . 3 . . . . 2 . . . . . . . . . . 1 . . . . . . Open Door 2 | . . . . . . . . . . . . . . . 1 . 1 . . . . . . . . . . . . . . . . Open DSF 1 | . . . . . . . . . . . . . . . . . . . . . . . . . . . . . 1 . . . . Branch Access Points 5 | . . . 1 . 1 . . 1 . . . . 1 . . . . . . . . . . . . . . . . . 1 . . Emergency Access Points 5 | . . . . . . 1 1 . . . . . . . . . . . . 1 . . . 1 . . . . . . . . 1 Unreport Threat 6 | . . . . . 1 . 2 1 . . . . . . . 1 . . . . . . . . . . 1 . . . . . . Locate Traps 3 | . . . . . . . 1 . . . . . . . . 1 . . . . 1 . . . . . . . . . . . . Recall Reinforcements 1 | . . . . . 1 . . . . . . . . . . . . . . . . . . . . . . . . . . . . Zone Layout 1 | . 1 . . . . . . . . . . . . . . . . . . . . . . . . . . . . . . . . Garrison Registry 2 | . . . . . . 1 . . . . . . . . . . . . . . . 1 . . . . . . . . . . . Patrol Navigation 2 | . . . . . . 1 . . . . . . . . . . . . . . . . . . . . . 1 . . . . . Security Stations 1 | . . . . . . . . . . . . . . . . . . . . . . . . 1 . . . . . . . . . Proto ID Catalog 1 | . . . . . . . . . . . . . . . . . . . . . . . . . . . . . . . . . 1 Fabricator Hacks 3 | . . . . . . . . 1 . . . . 2 . . . . . . . . . . . . . . . . . . . . Network Status 1 | . . . . . . . . 1 . . . . . . . . . . . . . . . . . . . . . . . . . Load Schematic 1 | . . . . . . . . . . . . . 1 . . . . . . . . . . . . . . . . . . . . Build 1 | . . . . . . . . . . . . . 1 . . . . . . . . . . . . . . . . . . . . Repair Station Hacks 19 | . 4 . 2 . 2 . 7 2 . . . . . . . . . . . . . . . . 2 . . . . . . . . Scan Component 10 | . 2 . 1 . 1 . 4 1 . . . . . . . . . . . . . . . . 1 . . . . . . . . Repair 9 | . 2 . 1 . 1 . 3 1 . . . . . . . . . . . . . . . . 1 . . . . . . . . Recycling Unit Hacks . | . . . . . . . . . . . . . . . . . . . . . . . . . . . . . . . . . . Scanalyzer 16 | . . . 8 . 3 . 3 2 . . . . . . . . . . . . . . . . . . . . . . . . . Insert Component 7 | . . . 4 . 1 . 1 1 . . . . . . . . . . . . . . . . . . . . . . . . . Analyze 9 | . . . 4 . 2 . 2 1 . . . . . . . . . . . . . . . . . . . . . . . . . Garrison Access Hacks 8 | . . . . . 1 . . . . . . . . . . . . . 1 . 1 . 1 . 2 . 1 . . . . . 1 Unlock Access 7 | . . . . . 1 . . . . . . . . . . . . . 1 . 1 . 1 . 1 . 1 . . . . . 1 Coupler Status 1 | . . . . . . . . . . . . . . . . . . . . . . . . . 1 . . . . . . . . Unauthorized Hacks 9 | . 4 . . . . . . . . . . . . . . 1 . . 1 . 1 . . . 1 . 1 . . . . . . Terminals 4 | . 2 . . . . . . . . . . . . . . 1 . . . . . . . . . . 1 . . . . . . Botnet 1 | . . . . . . . . . . . . . . . . . . . . . . . . . . . 1 . . . . . . Operators 1 | . . . . . . . . . . . . . . . . 1 . . . . . . . . . . . . . . . . . Skim 2 | . 2 . . . . . . . . . . . . . . . . . . . . . . . . . . . . . . . . Fabricators . | . . . . . . . . . . . . . . . . . . . . . . . . . . . . . . . . . . Repair Stations . | . . . . . . . . . . . . . . . . . . . . . . . . . . . . . . . . . . Recycling Units 2 | . 2 . . . . . . . . . . . . . . . . . . . . . . . . . . . . . . . . Tunnel 2 | . 2 . . . . . . . . . . . . . . . . . . . . . . . . . . . . . . . . Scanalyzers . | . . . . . . . . . . . . . . . . . . . . . . . . . . . . . . . . . . Garrison Access 3 | . . . . . . . . . . . . . . . . . . . 1 . 1 . . . 1 . . . . . . . . Reprogram 2 | . . . . . . . . . . . . . . . . . . . 1 . 1 . . . . . . . . . . . . Eject 1 | . . . . . . . . . . . . . . . . . . . . . . . . . 1 . . . . . . . . Data Cores Recovered 3 | . . . . . . . 1 1 . . . . . . . . . . . . 1 . . . . . . . . . . . . Used . | . . . . . . . . . . . . . . . . . . . . . . . . . . . . . . . . . . Hacking Detections 86 | . 5 . 9 . 5 5 9 9 . . . . 6 . 4 6 1 . 1 1 3 2 1 1 1 1 6 2 1 . 3 2 2 Full Trace Events 8 | . . . 1 . . 2 . 1 . . . . 2 . . . . . . . . . . . . 1 . 1 . . . . . Feedback Events . | . . . . . . . . . . . . . . . . . . . . . . . . . . . . . . . . . . Feedback Blocked . | . . . . . . . . . . . . . . . . . . . . . . . . . . . . . . . . . . Robot Schematics Acquired 7 | . 1 . . . . . . . . . 3 . . . . . . . . . . . . . . . . . . . . . 3 Robots Built . | . . . . . . . . . . . . . . . . . . . . . . . . . . . . . . . . . . Authchips . | . . . . . . . . . . . . . . . . . . . . . . . . . . . . . . . . . . Time . | . . . . . . . . . . . . . . . . . . . . . . . . . . . . . . . . . . Total Robot Build Rating . | . . . . . . . . . . . . . . . . . . . . . . . . . . . . . . . . . . Part Schematics Acquired 29 | . 1 . 4 . 2 . 1 3 . . 8 . . . . . . . . . . . . . . . . . . . . . 10 Parts Built 2 | . . . . . . . . . . . . . 2 . . . . . . . . . . . . . . . . . . . . Authchips . | . . . . . . . . . . . . . . . . . . . . . . . . . . . . . . . . . . Time 42 | . . . . . . . . . . . . . 42 . . . . . . . . . . . . . . . . . . . . Total Part Build Rating 8 | . . . . . . . . . . . . . 8 . . . . . . . . . . . . . . . . . . . . Parts Repaired 9 | . 2 . 1 . 1 . 3 1 . . . . . . . . . . . . . . . . 1 . . . . . . . . Time 314 | . 52 . 32 . 32 . 112 30 . . . . . . . . . . . . . . . . 56 . . . . . . . . Parts Recycled . | . . . . . . . . . . . . . . . . . . . . . . . . . . . . . . . . . . Recycled Matter . | . . . . . . . . . . . . . . . . . . . . . . . . . . . . . . . . . . Retrieved Matter . | . . . . . . . . . . . . . . . . . . . . . . . . . . . . . . . . . . Retrieved Components . | . . . . . . . . . . . . . . . . . . . . . . . . . . . . . . . . . . Parts Scanalyzed 7 | . . . 4 . 1 . 1 1 . . . . . . . . . . . . . . . . . . . . . . . . . Part Schematics Acquired 7 | . . . 4 . 1 . 1 1 . . . . . . . . . . . . . . . . . . . . . . . . . Parts Damaged . | . . . . . . . . . . . . . . . . . . . . . . . . . . . . . . . . . . Bothacking | -11 -10 -10 -9 -9 -8 -8 -8 -7 -7 -7 -7 -6 -6 -6 -6 -6 -6 -6 -6 -6 -5 -5 -5 -5 -4 -4 -3 -3 -3 -3 -2 -2 -2 ------------ Run | Yrd Mat Min Mat Min Mat Gar Mat Fac Low Low Dat Pro Fac Was Fac Ext Cet Arc Hub Gar Fac Gar Fac Gar Fac Gar Res Gar Res DSF Res Qua Frg Used RIF Installer 6 | . . . . . . 1 . . . . . . . . . . . . . 1 . 1 . 1 . 1 . 1 . . . . . Coupler Efficiency 1 | . . . . . . . . . . . . . . . . . . . . . . . . . . 1 . . . . . . . Hotswap 1 | . . . . . . . . . . . . . . . . . . . . . . . . . . . . 1 . . . . . Threat Obfuscator 1 | . . . . . . . . . . . . . . . . . . . . 1 . . . . . . . . . . . . . Robot Detection 1 | . . . . . . . . . . . . . . . . . . . . . . 1 . . . . . . . . . . . Patrol Navigation 1 | . . . . . . . . . . . . . . . . . . . . . . . . 1 . . . . . . . . . Robots Hacked 26 | . . . . . . . . 1 . . . . 1 6 3 . . . . . . . 3 . . . . 2 . . . 1 9 Non-combat 10 | . . . . . . . . 1 . . . . 1 . 3 . . . . . . . 3 . . . . 2 . . . . . Combat 16 | . . . . . . . . . . . . . . 6 . . . . . . . . . . . . . . . . . 1 9 Robot Hacks Applied 30 | . . . . . . . . 1 . . . . 1 6 3 . . . . . . . 5 . . . . 2 . . . 1 11 find_chute 2 | . . . . . . . . 1 . . . . 1 . . . . . . . . . . . . . . . . . . . . drop_inventory 4 | . . . . . . . . . . . . . . . 1 . . . . . . . 3 . . . . . . . . . . locate_stockpiles 1 | . . . . . . . . . . . . . . . . . . . . . . . 1 . . . . . . . . . . ignore_parts 2 | . . . . . . . . . . . . . . . 2 . . . . . . . . . . . . . . . . . . disable_scanner 2 | . . . . . . . . . . . . . . . . . . . . . . . . . . . . . . . . . 2 locate_prototypes 1 | . . . . . . . . . . . . . . . . . . . . . . . . . . . . . . . . . 1 ignore_targets 6 | . . . . . . . . . . . . . . 6 . . . . . . . . . . . . . . . . . . . amplify_resonance 2 | . . . . . . . . . . . . . . . . . . . . . . . . . . . . . . . . . 2 wipe_record 1 | . . . . . . . . . . . . . . . . . . . . . . . . . . . . . . . . . 1 overwrite_iff 2 | . . . . . . . . . . . . . . . . . . . . . . . . . . . . . . . . . 2 streamctrl_low 1 | . . . . . . . . . . . . . . . . . . . . . . . 1 . . . . . . . . . . formatsys_low 2 | . . . . . . . . . . . . . . . . . . . . . . . . . . . . 2 . . . . . formatsys_high 4 | . . . . . . . . . . . . . . . . . . . . . . . . . . . . . . . . 1 3 Relay Couplers Released 57 | . . . . . . 12 . . . . . . . . . . . . . 10 . 3 2 . 4 5 . 15 . . . . 6 Ejected 4 | . . . . . . . . . . . . . . . . . . . . . . . . . 4 . . . . . . . . Machine Destruction 43 | . . . . . . 8 . . . . . . . . . . . . . 10 . 3 2 . . 5 . 15 . . . . . Programmers 10 | . . . . . . 4 . . . . . . . . . . . . . . . . . . . . . . . . . . 6 Attached 10 | . . . . . . . . . . . . . . 1 . . . . . . . . 1 . . . . 2 . . . 1 5 Fabnet Peak Effective % . | . . . . . . . . . . . . . . . . . . . . . . . . . . . . . . . . . . Robots Rewired 23 | . . . . . . 2 . . . . . 2 . . . 10 . . . 2 . 3 . . . 2 . 2 . . . . . Allies Hacked 1 | . . . . . . . . . . . . . . . . . . . . 1 . . . . . . . . . . . . . Hacks Repelled . | . . . . . . . . . . . . . . . . . . . . . . . . . . . . . . . . . . Allies | -11 -10 -10 -9 -9 -8 -8 -8 -7 -7 -7 -7 -6 -6 -6 -6 -6 -6 -6 -6 -6 -5 -5 -5 -5 -4 -4 -3 -3 -3 -3 -2 -2 -2 -------- Run | Yrd Mat Min Mat Min Mat Gar Mat Fac Low Low Dat Pro Fac Was Fac Ext Cet Arc Hub Gar Fac Gar Fac Gar Fac Gar Res Gar Res DSF Res Qua Frg Total Allies 45 | . . . . . . 2 . . . . . 2 . . . 11 5 . 2 2 . 5 1 2 . 3 . 4 . . . 1 5 Largest Group 12 | . . . . . . 2 . . . . . 2 . . . 11 12 12 11 9 4 4 3 2 . 3 3 3 2 2 2 1 3 Highest-Rated Group 797 | . . . . . . 45 . . . . . 58 . . . 448 797 797 654 514 174 233 233 175 . 310 310 191 79 79 79 344 507 Highest-Rated Ally 344 | . . . . . . 25 . . . . . 29 . . . 159 159 143 96 96 80 95 95 95 . 148 148 119 44 44 44 344 344 Total Orders 47 | . . . . . . 1 . . . . . . . . . . . 2 . 2 . 2 . . . 7 . 23 1 6 1 1 1 STAY 19 | . . . . . . 1 . . . . . . . . . . . 1 . 1 . 1 . . . 3 . 9 . 3 . . . FOLLOW 7 | . . . . . . . . . . . . . . . . . . 1 . 1 . 1 . . . 2 . 1 . 1 . . . GUARD 3 | . . . . . . . . . . . . . . . . . . . . . . . . . . 2 . . . . . . 1 AID 18 | . . . . . . . . . . . . . . . . . . . . . . . . . . . . 13 1 2 1 1 . Ally Attacks 511 | . . . . . . . . . . . . 11 . . . 36 37 14 93 77 1 29 49 27 . 32 6 11 . . . 1 87 Total Damage 18185 | . . . . . . . . . . . . 150 . . . 873 957 278 2222 2316 . 1028 2120 1258 . 1236 186 455 . . . 112 4994 Kills 118 | . . . . . . . . . . . . 1 . . . 11 8 2 20 15 . 2 14 7 . 7 3 4 . . . 2 22 Allies Corrupted 2 | . . . . . . . . . . . . . . . . . . . . . . . . . . . . . . . . . 2 Allies Melted . | . . . . . . . . . . . . . . . . . . . . . . . . . . . . . . . . . . Intel | -11 -10 -10 -9 -9 -8 -8 -8 -7 -7 -7 -7 -6 -6 -6 -6 -6 -6 -6 -6 -6 -5 -5 -5 -5 -4 -4 -3 -3 -3 -3 -2 -2 -2 ------- Run | Yrd Mat Min Mat Min Mat Gar Mat Fac Low Low Dat Pro Fac Was Fac Ext Cet Arc Hub Gar Fac Gar Fac Gar Fac Gar Res Gar Res DSF Res Qua Frg Active Infowar (turns) 4312 | 30 464 . . . . 90 . 1494 1050 883 216 . . . . . . . . . . . . . . . . . . . . . 85 Optics 3643 | . . . . . . . . 1494 1050 883 216 . . . . . . . . . . . . . . . . . . . . . . Terrain 23 | 23 . . . . . . . . . . . . . . . . . . . . . . . . . . . . . . . . . Seismic 561 | 7 464 . . . . 90 . . . . . . . . . . . . . . . . . . . . . . . . . . . Cloaking 85 | . . . . . . . . . . . . . . . . . . . . . . . . . . . . . . . . . 85 Robot Analysis Total 153 | . . . 2 . . . . . . . 151 . . . . . . . . . . . . . . . . . . . . . . Derelict Logs Recovered 8 | . . 1 . 1 . . . . 2 1 . 3 . . . . . . . . . . . . . . . . . . . . . Drone Launches . | . . . . . . . . . . . . . . . . . . . . . . . . . . . . . . . . . . Drone Recoveries . | . . . . . . . . . . . . . . . . . . . . . . . . . . . . . . . . . . Exploration | -11 -10 -10 -9 -9 -8 -8 -8 -7 -7 -7 -7 -6 -6 -6 -6 -6 -6 -6 -6 -6 -5 -5 -5 -5 -4 -4 -3 -3 -3 -3 -2 -2 -2 ------------- Run | Yrd Mat Min Mat Min Mat Gar Mat Fac Low Low Dat Pro Fac Was Fac Ext Cet Arc Hub Gar Fac Gar Fac Gar Fac Gar Res Gar Res DSF Res Qua Frg Turns Passed 40480 | 120 3176 1776 3714 1324 2188 1993 1425 1595 1050 883 539 1428 750 132 419 1034 296 1748 315 875 202 824 798 714 203 917 693 2384 26 206 744 1739 4250 Spaces Moved 16250 | 51 882 534 1295 524 966 948 479 953 729 568 246 917 468 92 258 603 158 399 140 405 89 305 311 265 53 318 247 828 12 64 220 575 1348 Core 31 | 3 . . . . . . . . . . . . . . . . . 28 . . . . . . . . . . . . . . . Treads 9015 | 48 882 534 1295 524 419 . 34 . . . . . . . . . . 125 140 405 89 305 311 265 53 318 247 828 12 64 220 575 1322 Legs 26 | . . . . . . . . . . . . . . . . . . . . . . . . . . . . . . . . . 26 Wheels 7178 | . . . . . 547 948 445 953 729 568 246 917 468 92 258 603 158 246 . . . . . . . . . . . . . . . Hover . | . . . . . . . . . . . . . . . . . . . . . . . . . . . . . . . . . . Flight . | . . . . . . . . . . . . . . . . . . . . . . . . . . . . . . . . . . Fastest Speed 50 | 50 160 320 240 240 145 145 145 125 140 140 125 125 116 130 130 130 130 130 160 160 160 160 160 160 240 240 240 232 232 232 250 250 152 Average Speed 201 | 153 318 320 241 240 187 156 188 126 140 140 131 138 126 130 130 130 130 304 160 160 160 210 235 239 240 240 240 239 232 234 252 250 221 Slowest Speed 2450 | 160 320 320 320 240 243 175 570 140 140 140 160 140 135 130 130 130 130 2450 160 160 160 240 240 240 240 240 240 240 232 250 410 250 250 Overloaded Moves . | . . . . . . . . . . . . . . . . . . . . . . . . . . . . . . . . . . Propulsion Burnouts . | . . . . . . . . . . . . . . . . . . . . . . . . . . . . . . . . . . Robots Hopped . | . . . . . . . . . . . . . . . . . . . . . . . . . . . . . . . . . . Potential Cave-ins 36 | . . . . . . . . . . . . . 2 . . . . . . . . 6 . . . . . . . . 4 . 24 Cave-ins Triggered . | . . . . . . . . . . . . . . . . . . . . . . . . . . . . . . . . . . Teleports 1 | . . . . . . . . . . . . . . . . . . . . . . . . . . . . . . . . . 1 Exploration Rate (%) 52 | 4 87 69 99 98 62 95 43 34 83 73 83 96 16 85 11 85 67 94 17 50 4 43 12 41 2 46 8 79 . 66 9 49 33 Regions Visited 33 Branch Regions 12 Pre-discovered Areas 30 | . 2 2 . . . . . . . . 26 . . . . . . . . . . . . . . . . . . . . . . Known Exits Taken 11 | . . . 1 . 1 . . 1 . . . . . . 1 . . . 1 . 1 . 1 . 1 . 1 . 1 . 1 . . Unknown Exits Taken 13 | 1 1 1 . 1 . . 1 . 1 1 1 1 . . . 1 1 1 . . . . . . . . . . . . . 1 . Scrap Searched 12 | . . 1 . 3 . . . . 4 1 . 3 . . . . . . . . . . . . . . . . . . . . . Spaces Dug 197 | . . 12 16 . . 2 . 1 6 8 . 28 6 . 12 . . . . 5 . 7 . 3 . 3 4 7 . . 10 22 45 Terrain Destroyed 1307 | . 10 34 119 . . 2 49 1 6 8 1 175 19 . 51 81 15 7 2 17 . 12 21 23 22 18 21 61 . 2 112 68 350 Melee 23 | . . . 5 . . 2 . 1 5 8 . 2 . . . . . . . . . . . . . . . . . . . . . Projectile 748 | . . . . . . . 2 . 1 . 1 11 19 . 16 12 . 7 2 15 . 12 21 3 4 15 21 58 . 2 112 65 349 AOE 525 | . 10 34 114 . . . 47 . . . . 162 . . 35 69 15 . . . . . . 20 18 . . . . . . . 1 Terrain Rammed . | . . . . . . . . . . . . . . . . . . . . . . . . . . . . . . . . . . Walls Destroyed . | . . . . . . . . . . . . . . . . . . . . . . . . . . . . . . . . . . Machines Disabled . | . . . . . . . . . . . . . . . . . . . . . . . . . . . . . . . . . . Actions | -11 -10 -10 -9 -9 -8 -8 -8 -7 -7 -7 -7 -6 -6 -6 -6 -6 -6 -6 -6 -6 -5 -5 -5 -5 -4 -4 -3 -3 -3 -3 -2 -2 -2 --------- Run | Yrd Mat Min Mat Min Mat Gar Mat Fac Low Low Dat Pro Fac Was Fac Ext Cet Arc Hub Gar Fac Gar Fac Gar Fac Gar Res Gar Res DSF Res Qua Frg Total 21354 | 77 1114 569 1610 555 1208 1236 956 1258 747 620 389 1002 574 100 307 738 227 872 190 515 145 428 353 314 121 417 306 1072 11 95 315 753 2160 Wait 1681 | . 94 3 74 . 75 22 395 103 1 12 20 2 23 1 6 6 23 385 30 6 53 14 6 2 56 15 2 73 . . 9 6 164 Move 16221 | 50 881 533 1294 523 966 947 478 952 728 567 245 916 468 91 257 602 157 398 139 404 89 304 311 264 52 317 246 827 11 63 219 574 1348 Hop . | . . . . . . . . . . . . . . . . . . . . . . . . . . . . . . . . . . Pick Up 389 | 10 34 4 35 4 30 23 11 24 3 1 25 3 14 . 5 8 10 8 1 8 . 5 3 1 3 7 6 5 . 4 5 13 76 Fast Attach 114 | 7 2 . 3 . 2 5 3 7 . . 4 1 4 . . 4 2 10 . . . 2 . . 1 1 4 2 . 3 1 5 41 Attach 114 | . 1 2 8 . 8 11 1 3 . 1 15 1 4 . 2 1 3 4 . . 2 2 . 1 2 . 5 1 . 2 2 4 28 Detach 11 | . . . . . . 2 . . . . 4 . . . . . . . . . . . . . . . 1 . . . . 2 2 Swap 484 | 1 9 7 32 4 30 31 10 9 3 3 9 15 12 2 10 25 5 7 2 18 . 17 9 14 2 15 9 28 . 2 17 29 98 Drop 396 | 2 17 3 37 6 29 18 10 21 3 2 18 2 18 . 4 12 14 11 1 9 . 7 3 4 1 11 9 7 . 4 6 22 85 Fire 1565 | 7 71 15 119 18 64 89 48 95 4 26 22 50 31 6 23 58 13 49 16 46 1 33 17 20 4 51 23 104 . 13 47 84 298 Melee 71 | . . . 6 . 2 20 . 1 5 8 27 2 . . . . . . . . . . . . . . . . . . . . . Ram 1 | . . . . . 1 . . . . . . . . . . . . . . . . . . . . . . . . . . . . Kick 1 | . . . . . . . . . . . . . . . . . . . . . . . . . . . . . . . . . 1 Crush 14 | . 5 2 2 . 1 . . . . . . . . . . . . . 1 2 . . . . . . 1 . . . . . . Escape Stasis 138 | . . . . . . 24 . 43 . . . . . . . 16 . . . 2 . 2 4 6 . . . 22 . 4 . 2 13 Rewire 105 | . . . . . . 36 . . . . . 10 . . . . . . . 12 . 42 . 2 . . . 3 . . . . . Trap . | . . . . . . . . . . . . . . . . . . . . . . . . . . . . . . . . . . Miscellaneous 49 | . . . . . . 8 . . . . . . . . . 6 . . . 8 . . . . . . . . . . 9 12 6 Route ------- -11/Scrapyard -10/Materials (discovered 4 exits: *Mat x2 / [*Min x2]) -10/Mines (discovered 3 exits: *Mat / [*Exi] / [*Sub]) -9/Materials (discovered 4 exits: *Mat x3 / *Min) -9/Mines (discovered 2 exits: *Mat x2) -8/Materials (discovered 3 exits: *Fac / *Sto / Gar) -8/Garrison (discovered 3 exits: *Mat x3) -8/Materials (discovered 2 exits: *Fac / *Sto) -7/Factory (discovered 3 exits: *Fac / *Low x2) -7/Lower Caves -7/Lower Caves -7/Data Miner -6/Proximity Caves -6/Factory (discovered 6 exits: Fac x2 / Low x2 / Ext x2) -6/Waste -6/Factory -6/Extension (discovered 3 exits: *Fac x2 / *Cet) -6/Cetus (discovered 2 exits: *Fac / [*Arc]) -6/Archives (discovered 3 exits: *Fac / *Hub x2) -6/Hub_04(d) -6/Garrison -5/Factory -5/Garrison (discovered 3 exits: *Fac x3) -5/Factory -5/Garrison -4/Factory -4/Garrison -3/Research -3/Garrison (discovered 4 exits: *Res x4) -3/Research -3/DSF -2/Research (discovered 2 exits: *Qua x2) -2/Quarantine (discovered 2 exits: [*Sec] / *Frg) -2/Protoforge (discovered 2 exits: [*Acc] / Gar) History --------- Turn | Location | Event 3 | -11/Scrapyard | Discovered new exit (range 16) 121 | -11/Scrapyard | Entered Materials 312 | -10/Materials | Build established: Mutant 370 | -10/Materials | Discovered new exit (range 5) 983 | -10/Materials | Discovered new exit (range 9) 1683 | -10/Materials | Discovered new exit (range 16) 2009 | -10/Materials | Discovered new exit (range 15) 2409 | -10/Materials | Repaired Lgt. Treads 2437 | -10/Materials | Repaired Lgt. Treads 3297 | -10/Materials | Entered Mines 3304 | -10/Mines | Received a Rocket Launcher from a helpful Derelict 3364 | -10/Mines | Assembled infested the area 3549 | -10/Mines | Found a damaged Exp. Sensor Array with a note attached 3557 | -10/Mines | Found Prototype Device 3626 | -10/Mines | Learned location of Storage (-8) 3698 | -10/Mines | Deemed a non-threat by the Exiles lab entrance 3698 | -10/Mines | Discovered new exit (range 5) 3706 | -10/Mines | Core integrity fell below 50% 3830 | -10/Mines | Joined a pair of Derelicts in attacking an 0b10 outpost 3842 | -10/Mines | Discovered new exit (range 13) 3894 | -10/Mines | Discovered new exit (range 5) 4068 | -10/Mines | Learned location of Zion (-6) 5073 | -10/Mines | Entered Materials 5073 | -9/Materials | Evolved 2 slots: Propulsion x1, Weapon x1 5808 | -9/Materials | Build established: Tank 6243 | -9/Materials | Discovered new exit (range 16) 6756 | -9/Materials | Identified exit to Mines 6938 | -9/Materials | Repaired Shield Generator 6979 | -9/Materials | Discovered new exit (range 16) 7600 | -9/Materials | Discovered new exit (range 16) 7707 | -9/Materials | Build established: Scavenger-Tank 8273 | -9/Materials | First assault squad dispatched 8424 | -9/Materials | Identified Exp. Sensor Array 8787 | -9/Materials | Entered Mines 8796 | -9/Mines | Learned Materials garrison access intel 8842 | -9/Mines | Met a Derelict bent on vengeance 9044 | -9/Mines | Discovered new exit (range 10) 9381 | -9/Mines | Discovered new exit (range 11) 10083 | -9/Mines | Build established: Tank 10111 | -9/Mines | Entered Materials 10111 | -8/Materials | Evolved 2 slots: Utility x1, Weapon x1 10112 | -8/Materials | Loaded intel: 1 garrison access location 10421 | -8/Materials | Identified exit to Storage 11429 | -8/Materials | Discovered new exit (range 3) 11487 | -8/Materials | Repaired Rnf. Ion Engine 11504 | -8/Materials | Met 7R-MNS 11531 | -8/Materials | Attacked by 7R-MNS 11595 | -8/Materials | Core integrity fell below 50% 11610 | -8/Materials | 7R-MNS lamented failing the tripod run 11610 | -8/Materials | Destroyed 7R-MNS 11638 | -8/Materials | Lost 5 parts (1n1u3w) 12299 | -8/Materials | Identified exit to Garrison 12299 | -8/Materials | Entered Garrison 12359 | -8/Garrison | Installed Relay Interface Framework 12481 | -8/Garrison | Triggered checkpoint 12525 | -8/Garrison | Triggered checkpoint 12628 | -8/Garrison | Triggered checkpoint 12659 | -8/Garrison | Garrison Relay disabled 12737 | -8/Garrison | Discovered new exit (range 13) 12864 | -8/Garrison | Triggered checkpoint 13128 | -8/Garrison | Discovered new exit (range 8) 13238 | -8/Garrison | Triggered checkpoint 13304 | -8/Garrison | Garrison Relay disabled 13385 | -8/Garrison | Spotted B-75 Beast 13412 | -8/Garrison | Core integrity fell below 20% 13440 | -8/Garrison | Destroyed B-75 Beast 13464 | -8/Garrison | Lost 3 parts (3w) 13754 | -8/Garrison | Discovered new exit (range 5) 13783 | -8/Garrison | Triggered checkpoint 14175 | -8/Garrison | Discovered new exit (range 58) 14175 | -8/Garrison | Discovered new exit (range 66) 14175 | -8/Garrison | Discovered new exit (range 36) 14292 | -8/Garrison | Entered Materials 14539 | -8/Materials | Discovered exit to Storage (range 15) 14659 | -8/Materials | Repaired Broken Rnf. Deuterium Engine 14891 | -8/Materials | Repaired Arm. Treads 14936 | -8/Materials | Repaired Imp. Cooling System 15400 | -8/Materials | Discovered new exit (range 12) 15717 | -8/Materials | Entered Factory 15717 | -7/Factory | Evolved 2 slots: Propulsion x1, Utility x1 16673 | -7/Factory | Repaired Enh. Autogun 16948 | -7/Factory | Identified exit to Lower Caves 17183 | -7/Factory | Discovered new exit (range 20) 17312 | -7/Factory | Entered Lower Caves 17315 | -7/Lower Caves | Learned Factory security intel 18218 | -7/Lower Caves | Discovered new exit (range 6) 18362 | -7/Lower Caves | Entered another Lower Caves area 18609 | -7/Lower Caves | Spotted B-75 Beast 18659 | -7/Lower Caves | Learned Factory garrison access intel 18703 | -7/Lower Caves | Attracted the attention of an 0b10 checkpoint 18952 | -7/Lower Caves | Encountered a Warlord checkpoint 19013 | -7/Lower Caves | Discovered new exit (range 7) 19245 | -7/Lower Caves | Entered Data Miner 19248 | -7/Data Miner | Discovered new exit (range 6) 19291 | -7/Data Miner | Met Data Miner 19324 | -7/Data Miner | Learned location of Section 7 (-2) 19324 | -7/Data Miner | Acquired the access code to Warlord's prototype stash 19346 | -7/Data Miner | Received God Mode back door access code from Data Miner 19358 | -7/Data Miner | Interfaced with the Data Conduit 19524 | -7/Data Miner | Found Corrupted Exp. Thermal Shield 19534 | -7/Data Miner | Lost 4 parts (3n1u) 19541 | -7/Data Miner | System corruption reached 10% 19715 | -7/Data Miner | Found Corrupted Exp. Thermal Shield 19784 | -7/Data Miner | Entered Proximity Caves 19788 | -6/Proximity Caves | Spotter reported a threat 19789 | -6/Proximity Caves | Spotter reported a threat 19841 | -6/Proximity Caves | Attracted the attention of an 0b10 outpost 19878 | -6/Proximity Caves | Destroyed 9 combat bots 19932 | -6/Proximity Caves | Learned Factory garrison access intel 19969 | -6/Proximity Caves | Build established: Scavenger-Gunner 20075 | -6/Proximity Caves | Attracted the attention of an 0b10 checkpoint 20114 | -6/Proximity Caves | Destroyed 7 combat bots 21036 | -6/Proximity Caves | Discovered new exit (range 13) 21057 | -6/Proximity Caves | Learned Factory garrison access intel 21067 | -6/Proximity Caves | Learned 12 Factory zone layouts 21212 | -6/Proximity Caves | Entered Factory 21212 | -6/Factory | Evolved 2 slots: Power x1, Utility x1 21213 | -6/Factory | Identified exit to Factory 21215 | -6/Factory | Loaded intel: 323 machine locations 21216 | -6/Factory | Loaded intel: 4 garrison access locations 21557 | -6/Factory | Build established: Scavenger-Tank 21599 | -6/Factory | Fabricated Arm. Huge Wheel? 21750 | -6/Factory | Spotted B-75 Beast 21768 | -6/Factory | Destroyed B-75 Beast 21934 | -6/Factory | Identified exit to Lower Caves 21934 | -6/Factory | Identified exit to Extension 21962 | -6/Factory | Sucked down chute 21962 | -6/Factory | Entered Waste 21975 | -6/Waste | Spotted C-40 Crusher 21977 | -6/Waste | EMP discharged 21977 | -6/Waste | System corruption reached 10% 22001 | -6/Waste | Spotted C-40 Crusher 22010 | -6/Waste | Spotted C-40 Crusher 22022 | -6/Waste | Spotted C-40 Crusher 22026 | -6/Waste | Spotted C-40 Crusher 22030 | -6/Waste | Spotted C-40 Crusher 22077 | -6/Waste | EMP discharged 22082 | -6/Waste | Discovered new exit (range 10) 22094 | -6/Waste | Entered Factory 22095 | -6/Factory | Loaded intel: 283 machine locations 22096 | -6/Factory | Loaded intel: 4 garrison access locations 22369 | -6/Factory | Spotted B-75 Beast 22509 | -6/Factory | Discovered exit to Extension (range 5) 22513 | -6/Factory | Entered Extension 22514 | -6/Extension | Loaded intel: 35 machine locations 22591 | -6/Extension | Build established: Gunner 22631 | -6/Extension | Energy Cycler disabled 22631 | -6/Extension | Rescued a captive Derelict 22631 | -6/Extension | Rescued a captive Derelict 22631 | -6/Extension | Rescued a captive Derelict 22632 | -6/Extension | Rescued a captive Derelict 22632 | -6/Extension | Rescued a captive Derelict 22635 | -6/Extension | Rescued a captive Derelict 22638 | -6/Extension | Rescued a captive Derelict 22643 | -6/Extension | Rescued a captive Derelict 22644 | -6/Extension | Rescued a captive Derelict 22646 | -6/Extension | Rescued a captive Derelict 22722 | -6/Extension | Rescued A7 23060 | -6/Extension | Disrupted transfer network 23154 | -6/Extension | Spotted B-75 Beast 23164 | -6/Extension | Destroyed B-75 Beast 23176 | -6/Extension | Spotted B-75 Beast 23189 | -6/Extension | Allies destroyed B-75 Beast 23192 | -6/Extension | Discovered exit to Factory (range 13) 23493 | -6/Extension | Discovered exit to Factory (range 10) 23515 | -6/Extension | Discovered new exit (range 6) 23547 | -6/Extension | Entered Cetus 23547 | -6/Cetus | Accompanied by 10 allies (A7) 23548 | -6/Cetus | Loaded intel: 24 machine locations 23552 | -6/Cetus | Acquired a Cetus Manufacturing Module code from A7 23564 | -6/Cetus | Spotted Cetus Guard 23564 | -6/Cetus | Spotted Cetus Guard 23569 | -6/Cetus | Spotted Cetus Guard 23571 | -6/Cetus | Destroyed Cetus Guard 23571 | -6/Cetus | Spotted Cetus Guard 23575 | -6/Cetus | Allies destroyed Cetus Guard 23578 | -6/Cetus | Allies destroyed Cetus Guard 23583 | -6/Cetus | Allies destroyed Cetus Guard 23654 | -6/Cetus | Started Cetus Manufacturing Module 23664 | -6/Cetus | Escorted A7 to Cetus Mainframe 23679 | -6/Cetus | Manufactured an Enhanced Grunt 23691 | -6/Cetus | Discovered new exit (range 15) 23704 | -6/Cetus | Manufactured an Enhanced Grunt 23713 | -6/Cetus | Spotted Cetus Guard 23713 | -6/Cetus | Spotted Cetus Guard 23717 | -6/Cetus | Spotted Cetus Guard 23720 | -6/Cetus | Spotted Cetus Guard 23722 | -6/Cetus | Allies destroyed Cetus Guard 23723 | -6/Cetus | Destroyed Cetus Guard 23729 | -6/Cetus | Manufactured an Enhanced Grunt 23730 | -6/Cetus | Destroyed Cetus Guard 23733 | -6/Cetus | Destroyed Cetus Guard 23745 | -6/Cetus | Discovered exit to Factory (range 15) 23752 | -6/Cetus | Met Revision 17 23754 | -6/Cetus | Manufactured an Enhanced Grunt 23762 | -6/Cetus | Lost 3 allies 23779 | -6/Cetus | Manufactured an Enhanced Grunt 23843 | -6/Cetus | Entered Archives 23843 | -6/Archives | Accompanied by 12 allies (A7) 23844 | -6/Archives | Loaded intel: 8 machine locations 23848 | -6/Archives | Received a hacking code to weaken MAIN.C 24074 | -6/Archives | Discovered exit to Factory (range 16) 24205 | -6/Archives | Build established: Commander-Gunner 24221 | -6/Archives | Discovered new exit (range 15) 24340 | -6/Archives | Discovered new exit (range 13) 24658 | -6/Archives | Build established: Commander-Tank 25591 | -6/Archives | Entered Hub_04(d) 25591 | -6/Hub_04(d) | Accompanied by 11 allies 25592 | -6/Hub_04(d) | Loaded intel: 89 machine locations 25684 | -6/Hub_04(d) | Lost 3 allies 25706 | -6/Hub_04(d) | Garrison activated, responded to threat 25866 | -6/Hub_04(d) | Identified exit to Garrison 25906 | -6/Hub_04(d) | Entered Garrison 25906 | -6/Garrison | Accompanied by 9 allies 25907 | -6/Garrison | Loaded intel: 27 machine locations 25951 | -6/Garrison | Build established: Scavenger-Tank 25980 | -6/Garrison | Triggered checkpoint 26030 | -6/Garrison | Garrison Relay disabled 26138 | -6/Garrison | Triggered checkpoint 26156 | -6/Garrison | Triggered checkpoint 26167 | -6/Garrison | Triggered checkpoint 26288 | -6/Garrison | Expanded RIF knowledge: Threat Obfuscation 26303 | -6/Garrison | Triggered checkpoint 26396 | -6/Garrison | Triggered checkpoint 26493 | -6/Garrison | Lost 3 allies 26521 | -6/Garrison | Discovered exit to Factory (range 12) 26583 | -6/Garrison | Found Relay Coupler [Proto] 26589 | -6/Garrison | Found Relay Coupler [Proto] 26592 | -6/Garrison | Found Relay Coupler [Proto] 26595 | -6/Garrison | Found Relay Coupler [Proto] 26665 | -6/Garrison | Triggered checkpoint 26725 | -6/Garrison | Garrison Relay disabled 26781 | -6/Garrison | Entered Factory 26781 | -5/Factory | Accompanied by 4 allies 26781 | -5/Factory | Evolved 2 slots: Utility x1, Weapon x1 26782 | -5/Factory | Loaded intel: 278 machine locations 26783 | -5/Factory | Loaded intel: 4 garrison access locations 26930 | -5/Factory | Identified exit to Garrison 26983 | -5/Factory | Entered Garrison 26983 | -5/Garrison | Accompanied by 4 allies 26984 | -5/Garrison | Loaded intel: 37 machine locations 27013 | -5/Garrison | Discovered new exit (range 66) 27013 | -5/Garrison | Discovered new exit (range 55) 27013 | -5/Garrison | Discovered new exit (range 68) 27055 | -5/Garrison | Spotted B-75 Beast 27069 | -5/Garrison | Triggered checkpoint 27079 | -5/Garrison | Destroyed B-75 Beast 27096 | -5/Garrison | Triggered checkpoint 27122 | -5/Garrison | Lost 4 allies 27254 | -5/Garrison | Found Unknown Protection 27255 | -5/Garrison | Identified Adv. Powered Armor 27259 | -5/Garrison | Found Adv. Powered Armor 27266 | -5/Garrison | Found Adv. Powered Armor 27476 | -5/Garrison | Triggered checkpoint 27525 | -5/Garrison | Triggered checkpoint 27620 | -5/Garrison | Assembled breached garrison interior 27636 | -5/Garrison | Expanded RIF knowledge: Robot Detection 27732 | -5/Garrison | Garrison Relay disabled 27759 | -5/Garrison | Found embedded Infiltrators 27807 | -5/Garrison | Entered Factory 27807 | -5/Factory | Accompanied by 3 allies 27808 | -5/Factory | Loaded intel: 269 machine locations 27874 | -5/Factory | Garrison activated, responded to threat 28369 | -5/Factory | Garrison activated, responded to threat 28379 | -5/Factory | Destroyed 7 combat bots 28605 | -5/Factory | Identified exit to Garrison 28605 | -5/Factory | Entered Garrison 28606 | -5/Garrison | Loaded intel: 28 machine locations 28650 | -5/Garrison | Found embedded Infiltrators 28679 | -5/Garrison | Triggered checkpoint 28722 | -5/Garrison | Learned Factory security intel 28783 | -5/Garrison | Expanded RIF knowledge: Patrol Navigation 28844 | -5/Garrison | Triggered checkpoint 28877 | -5/Garrison | Triggered checkpoint 28949 | -5/Garrison | P-70 Sage assimilated allied 04-ZOB(x) 29005 | -5/Garrison | Triggered checkpoint 29239 | -5/Garrison | Discovered new exit (range 7) 29319 | -5/Garrison | Entered Factory 29319 | -4/Factory | Evolved 2 slots: Utility x2 29321 | -4/Factory | Loaded intel: 311 machine locations 29406 | -4/Factory | Repaired Adv. Cooling System 29513 | -4/Factory | Identified exit to Garrison 29522 | -4/Factory | Entered Garrison 29523 | -4/Garrison | Loaded intel: 32 machine locations 29531 | -4/Garrison | Spotted B-75 Beast 29570 | -4/Garrison | Rewired B-90 Cyclops 29574 | -4/Garrison | Rewired B-86 Titan 29574 | -4/Garrison | Allies destroyed B-75 Beast 29782 | -4/Garrison | Spotted B-86 Titan 29796 | -4/Garrison | Allies destroyed B-86 Titan 29948 | -4/Garrison | Found Relay Coupler [Proto] 29952 | -4/Garrison | Found Relay Coupler [Proto] 29956 | -4/Garrison | Found Relay Coupler [Proto] 29961 | -4/Garrison | Found Relay Coupler [Proto] 30056 | -4/Garrison | Triggered checkpoint 30084 | -4/Garrison | Triggered checkpoint 30133 | -4/Garrison | Destroyed 13 combat bots 30156 | -4/Garrison | Triggered checkpoint 30199 | -4/Garrison | Expanded RIF knowledge: Coupler Efficiency 30251 | -4/Garrison | Build established: Botlord-Tank 30272 | -4/Garrison | Triggered checkpoint 30315 | -4/Garrison | Garrison Relay disabled 30373 | -4/Garrison | Discovered new exit (range 14) 30392 | -4/Garrison | Rescued a captive Derelict 30439 | -4/Garrison | Entered Research 30439 | -3/Research | Accompanied by 3 allies 30439 | -3/Research | Evolved 2 slots: Utility x1, Weapon x1 30440 | -3/Research | Loaded intel: 103 machine locations 30522 | -3/Research | Allies destroyed Titan 7a 30557 | -3/Research | Lost 3 allies 30639 | -3/Research | Revision forces began assault on 0b10 30650 | -3/Research | Met up with Revision 17++ 30737 | -3/Research | Build established: Botlord-Executioner 30947 | -3/Research | Found Exp. Terrain Scan Processor 31047 | -3/Research | Spotted B-86 Titan 31051 | -3/Research | Destroyed B-86 Titan 31094 | -3/Research | Identified exit to Garrison 31132 | -3/Research | Entered Garrison 31133 | -3/Garrison | Loaded intel: 36 machine locations 31350 | -3/Garrison | Triggered checkpoint 31398 | -3/Garrison | Garrison Relay disabled 31409 | -3/Garrison | Spotted Executioner 31409 | -3/Garrison | Spotted Executioner 31430 | -3/Garrison | Destroyed Executioner 31441 | -3/Garrison | Destroyed Executioner 31457 | -3/Garrison | Found Exp. Core Analyzer 31492 | -3/Garrison | Rewired Executioner 31496 | -3/Garrison | Found Adv. Kinecellerator 31641 | -3/Garrison | Triggered checkpoint 31652 | -3/Garrison | Spotted B-86 Titan 31666 | -3/Garrison | Triggered checkpoint 31680 | -3/Garrison | Destroyed B-86 Titan 31738 | -3/Garrison | Triggered checkpoint 31747 | -3/Garrison | Triggered checkpoint 31756 | -3/Garrison | Build established: Scavenger-Executioner 31930 | -3/Garrison | Discovered new exit (range 15) 32144 | -3/Garrison | Triggered checkpoint 32346 | -3/Garrison | Expanded RIF knowledge: Hotswap 32379 | -3/Garrison | Garrison Relay disabled 32596 | -3/Garrison | Discovered new exit (range 13) 32711 | -3/Garrison | Triggered checkpoint 32764 | -3/Garrison | Garrison Relay disabled 33076 | -3/Garrison | Discovered new exit (range 10) 33090 | -3/Garrison | Triggered checkpoint 33147 | -3/Garrison | Discovered new exit (range 6) 33224 | -3/Garrison | Spotted B-75 Beast 33224 | -3/Garrison | Spotted B-86 Titan 33263 | -3/Garrison | Triggered checkpoint 33293 | -3/Garrison | Garrison Relay disabled 33516 | -3/Garrison | Entered Research 33516 | -3/Research | Accompanied by 2 allies 33517 | -3/Research | Loaded intel: 108 machine locations 33540 | -3/Research | Identified exit to DSF 33542 | -3/Research | Entered DSF 33542 | -3/DSF | Accompanied by 2 allies 33543 | -3/DSF | Loaded intel: 4 machine locations 33558 | -3/DSF | Additional patrols routed to DSF 33617 | -3/DSF | Build established: Botlord-Executioner 33672 | -3/DSF | Sterilization system engaged 33692 | -3/DSF | Ambient heat levels rising (+10) 33692 | -3/DSF | Destroyed 8 combat bots 33707 | -3/DSF | Ambient heat levels rising (+10) 33710 | -3/DSF | Discovered new exit (range 14) 33722 | -3/DSF | Ambient heat levels rising (+10) 33737 | -3/DSF | Ambient heat levels rising (+10) 33748 | -3/DSF | Entered Research 33748 | -2/Research | Accompanied by 2 allies 33748 | -2/Research | Evolved 2 slots: Utility x2 33749 | -2/Research | Loaded intel: 117 machine locations 33771 | -2/Research | Identified exit to Quarantine 34196 | -2/Research | Garrison activated, responded to threat 34248 | -2/Research | First assault squad dispatched 34492 | -2/Research | Entered Quarantine 34493 | -2/Quarantine | Loaded intel: 99 machine locations 34608 | -2/Quarantine | Found Alien Artifact 34608 | -2/Quarantine | Identified Phase Armor 34651 | -2/Quarantine | Found Alien Artifact 34686 | -2/Quarantine | Found Alien Artifact 34721 | -2/Quarantine | Found Alien Artifact 35307 | -2/Quarantine | Destroyed 8 combat bots 35357 | -2/Quarantine | System corruption reached 10% 35417 | -2/Quarantine | Found Alien Artifact 35492 | -2/Quarantine | First assault squad dispatched 35801 | -2/Quarantine | Found Alien Energy Cannon 36021 | -2/Quarantine | Spotted Fortress 36035 | -2/Quarantine | Assimilated Fortress with formatsys_high 36214 | -2/Quarantine | Discovered new exit (range 7) 36214 | -2/Quarantine | Discovered new exit (range 6) 36231 | -2/Quarantine | Entered Protoforge 36231 | -2/Protoforge | Accompanied by 1 ally 36232 | -2/Protoforge | Loaded intel: 402 machine locations 36250 | -2/Protoforge | Superfortress began startup sequence 36653 | -2/Protoforge | Discovered new exit (range 9) 36901 | -2/Protoforge | Identified Core Cannon 36902 | -2/Protoforge | Additional patrols dispatched to research labs 36951 | -2/Protoforge | Spotted Immortal 36995 | -2/Protoforge | Assimilated Immortal with formatsys_high 37012 | -2/Protoforge | Found Cep. Rapid Grenade Launcher 37021 | -2/Protoforge | Found Cep. Tiamat Rocket Array 37030 | -2/Protoforge | Found Cep. Smart ZDS 37060 | -2/Protoforge | Spotted Decapitator 37060 | -2/Protoforge | Spotted Decapitator 37060 | -2/Protoforge | Spotted Decapitator 37061 | -2/Protoforge | Spotted Decapitator 37063 | -2/Protoforge | Allies destroyed Decapitator 37064 | -2/Protoforge | Core integrity fell below 50% 37098 | -2/Protoforge | Spotted Decapitator 37098 | -2/Protoforge | Spotted Decapitator 37098 | -2/Protoforge | Spotted Decapitator 37098 | -2/Protoforge | Spotted Decapitator 37101 | -2/Protoforge | Spotted Decapitator 37101 | -2/Protoforge | Spotted Decapitator 37101 | -2/Protoforge | Spotted Decapitator 37101 | -2/Protoforge | Spotted Decapitator 37105 | -2/Protoforge | Destroyed Decapitator 37148 | -2/Protoforge | Found Crosscalibrator 37156 | -2/Protoforge | Identified Transdimensional Reconstructor 37167 | -2/Protoforge | Found Cep. Antimissile System 37275 | -2/Protoforge | Found Cep. XC Strikerail 37288 | -2/Protoforge | Spotted V152-a 37294 | -2/Protoforge | Destroyed V152-a 37307 | -2/Protoforge | Found Cep. XC Strikerail 37322 | -2/Protoforge | Found Prototype Energy Cannon 37340 | -2/Protoforge | Found Prototype Protection 37340 | -2/Protoforge | Identified Centrium Heavy Armor Plating 37354 | -2/Protoforge | Identified Cep. Plasma Driver 37359 | -2/Protoforge | Found Faulty Cep. XC Strikerail 37389 | -2/Protoforge | Found Faulty Cep. Plasma Driver 37395 | -2/Protoforge | Found Faulty Cep. Miniperforator 37409 | -2/Protoforge | Found Cep. Helical Railcannon 37418 | -2/Protoforge | Found Cep. XC Strikerail 37426 | -2/Protoforge | Found Faulty Cep. Plasma Driver 37435 | -2/Protoforge | Found Faulty Cep. Helical Railcannon 37439 | -2/Protoforge | Found Cep. Helical Railcannon 37471 | -2/Protoforge | Found Cep. Miniperforator 37644 | -2/Protoforge | Identified exit to Garrison 37655 | -2/Protoforge | Spotted Decapitator 37655 | -2/Protoforge | Spotted Decapitator 37655 | -2/Protoforge | Spotted Decapitator 37656 | -2/Protoforge | Spotted Decapitator 37663 | -2/Protoforge | Allies destroyed Decapitator 37728 | -2/Protoforge | Spotted V381-g 37731 | -2/Protoforge | First assault squad dispatched 37731 | -2/Protoforge | Spotted V406-d 37731 | -2/Protoforge | Spotted V158-c 37735 | -2/Protoforge | Destroyed V381-g 37739 | -2/Protoforge | Destroyed V406-d 37742 | -2/Protoforge | Destroyed V158-c 37769 | -2/Protoforge | Found Cep. XC Strikerail 37816 | -2/Protoforge | Found Prototype Device 37824 | -2/Protoforge | Identified Cep. Matter Streamer 37838 | -2/Protoforge | Found Cep. Antimissile System 37943 | -2/Protoforge | Identified Dimensional Node Initializer 37943 | -2/Protoforge | Initialized slip node 37977 | -2/Protoforge | Destroyed Decapitator 38018 | -2/Protoforge | Intercept squad dispatched 38041 | -2/Protoforge | Spotted Tracker 38042 | -2/Protoforge | Spotted Tracker 38046 | -2/Protoforge | Destroyed Tracker 38047 | -2/Protoforge | Spotted Combat Programmer 38049 | -2/Protoforge | Destroyed Combat Programmer 38052 | -2/Protoforge | Destroyed Tracker 38093 | -2/Protoforge | Spotted Combat Programmer 38103 | -2/Protoforge | Destroyed Combat Programmer 38118 | -2/Protoforge | Found Exp. Target Analyzer 38139 | -2/Protoforge | Build established: Bothacker-Executioner 38139 | -2/Protoforge | Spotted Decapitator 38139 | -2/Protoforge | Spotted Decapitator 38139 | -2/Protoforge | Spotted V948-x 38141 | -2/Protoforge | Spotted Decapitator 38152 | -2/Protoforge | Destroyed Decapitator 38155 | -2/Protoforge | Destroyed Decapitator 38157 | -2/Protoforge | Scanned by Researcher 38158 | -2/Protoforge | Destroyed Decapitator 38185 | -2/Protoforge | Garrison activated, responded to threat 38221 | -2/Protoforge | Found Faulty Cep. Zero-point Core 38234 | -2/Protoforge | Found Faulty Cep. Zero-point Core 38379 | -2/Protoforge | Found Faulty Cep. Zero-point Core 38497 | -2/Protoforge | Garrison activated, responded to threat 38538 | -2/Protoforge | Destroyed 7 combat bots 38683 | -2/Protoforge | System corruption reached 30% 38725 | -2/Protoforge | Core integrity fell below 20% 38777 | -2/Protoforge | Spotted V384-r 38777 | -2/Protoforge | Spotted V157-o 38778 | -2/Protoforge | Spotted V549-w 38792 | -2/Protoforge | Destroyed V384-r 38804 | -2/Protoforge | Spotted V078-n 38826 | -2/Protoforge | Destroyed V078-n 38836 | -2/Protoforge | Destroyed V157-o 38848 | -2/Protoforge | Found Prototype Device 38848 | -2/Protoforge | Identified Exp. Thermal Defense Suite 38856 | -2/Protoforge | Lost 3 parts (2u1w) 38856 | -2/Protoforge | Found Cep. Antimissile System 38896 | -2/Protoforge | Found Cep. Antigrav Storage Unit 38931 | -2/Protoforge | Found Cep. Chromion Battery 38935 | -2/Protoforge | Found Cep. Matter Streamer 38959 | -2/Protoforge | Found Prototype Device 38964 | -2/Protoforge | Found Prototype Device 38966 | -2/Protoforge | Identified Cep. Weapon Articulator 38976 | -2/Protoforge | Found Faulty Cep. Hypertargeting System 38984 | -2/Protoforge | Found Prototype Device 38991 | -2/Protoforge | Identified Cep. Recoil Nullifier (x2) 39007 | -2/Protoforge | Found Faulty Cep. Countertargeting System 39016 | -2/Protoforge | Spotted Decapitator 39016 | -2/Protoforge | Spotted Decapitator 39040 | -2/Protoforge | Found Exp. Core Analyzer 39046 | -2/Protoforge | Found Adv. Powered Armor 39078 | -2/Protoforge | Spotted V978-f 39078 | -2/Protoforge | Spotted V726-f 39078 | -2/Protoforge | Spotted V605-p 39078 | -2/Protoforge | Spotted Immortal 39084 | -2/Protoforge | Found Prototype Protection 39084 | -2/Protoforge | Identified Cep. Core Shell 39086 | -2/Protoforge | Spotted Immortal 39094 | -2/Protoforge | Intercept squad dispatched 39109 | -2/Protoforge | Spotted Tracker 39109 | -2/Protoforge | Spotted Tracker 39110 | -2/Protoforge | Destroyed Tracker 39110 | -2/Protoforge | Spotted Tracker 39113 | -2/Protoforge | Destroyed Tracker 39113 | -2/Protoforge | Destroyed Tracker 39120 | -2/Protoforge | Assimilated Immortal with formatsys_high 39122 | -2/Protoforge | Assimilated Immortal with formatsys_high 39130 | -2/Protoforge | Found Cep. Core Shell 39134 | -2/Protoforge | Found Prototype Device 39143 | -2/Protoforge | Destroyed V978-f 39150 | -2/Protoforge | Spotted Combat Programmer 39151 | -2/Protoforge | Spotted Combat Programmer 39154 | -2/Protoforge | Destroyed Combat Programmer 39157 | -2/Protoforge | Destroyed Combat Programmer 39175 | -2/Protoforge | Identified Cep. Energy Mantle 39180 | -2/Protoforge | Spotted Combat Programmer 39182 | -2/Protoforge | Destroyed Combat Programmer 39194 | -2/Protoforge | Found Prototype Device 39210 | -2/Protoforge | Found Cep. Core Shell 39218 | -2/Protoforge | Found Faulty Cep. Beam Splitter 39222 | -2/Protoforge | Destroyed 13 combat bots 39255 | -2/Protoforge | Spotted V878-j 39264 | -2/Protoforge | Destroyed V878-j 39279 | -2/Protoforge | Found Cep. RG22 Armor 39283 | -2/Protoforge | Found Faulty Cep. RG22 Armor 39288 | -2/Protoforge | Found Faulty Cep. Hardlight Director 39296 | -2/Protoforge | Found Faulty Cep. RG22 Armor 39306 | -2/Protoforge | Found Prototype Processor 39314 | -2/Protoforge | Identified Cep. Projectile Intercept Suite 39318 | -2/Protoforge | Identified Cep. Reaction Jets 39382 | -2/Protoforge | Build established: Scavenger-Executioner 39433 | -2/Protoforge | Destroyed 7 combat bots 39529 | -2/Protoforge | Found Prototype Hackware 39534 | -2/Protoforge | Identified Cep. Network Penetrator 39591 | -2/Protoforge | Spotted AP7-3 39591 | -2/Protoforge | Spotted AP7-3 39597 | -2/Protoforge | Destroyed AP7-3 39636 | -2/Protoforge | Destroyed AP7-3 39660 | -2/Protoforge | Lost 6 parts (1n2u3w) 39691 | -2/Protoforge | Found Cep. Core Analysis Suite 39694 | -2/Protoforge | Found Prototype Device 39696 | -2/Protoforge | Found Faulty Cep. Impact Drone Bay 39699 | -2/Protoforge | Found Cep. Core Analysis Suite 39736 | -2/Protoforge | Warped through subspace to slip node 39737 | -2/Protoforge | Found Cep. Cloak Mesh 39820 | -2/Protoforge | Identified Cep. Thermoelectric Network 39824 | -2/Protoforge | Found Faulty Cep. Heavy Railcannon 39828 | -2/Protoforge | Found Cep. Heavy Railcannon 39944 | -2/Protoforge | Found Cep. Variable Chargecaster 39948 | -2/Protoforge | Found Prototype Slashing Weapon 39962 | -2/Protoforge | Found Faulty Cep. Variable Chargecaster 40080 | -2/Protoforge | Destroyed 9 combat bots 40259 | -2/Protoforge | High security lockdown imminent 40283 | -2/Protoforge | Destroyed 7 combat bots 40321 | -2/Protoforge | Lost 5 parts (1n2u2w) 40339 | -2/Protoforge | High security lockdown engaged 40376 | -2/Protoforge | Garrison activated, responded to threat 40408 | -2/Protoforge | Destroyed 9 combat bots 40459 | -2/Protoforge | Spotted Investigator 40465 | -2/Protoforge | Destroyed Investigator 40481 | -2/Protoforge | Destroyed by Y-72 Warden with Quantum Rifle Last Messages --------------- 40475_ Stasis bubble strength at 76. 40476_ Y-72 Warden emerges from the garrison. 40476_ System corrupted: Matter fused (-5). 40476_ Slug penetrates Y-72 Warden. 40476_ Stasis bubble strength at 60. 40477_ Stasis bubble strength at 44. 40478_ Stasis bubble strength at 28. 40478_ G-73 Enforcer stasis bubble strength at 62. 40478_ Penetrated by Slug. 40478_ Slug penetrates Y-72 Warden. 40479_ Slug penetrates G-73 Enforcer. 40479_ Stasis bubble strength at 12. 40479_ G-73 Enforcer stasis bubble strength at 39. 40480_ Penetrated by Slug. 40480_ Stasis bubble bursts. 40480_ Kicked Y-72 Warden out of the way. 40480_ G-73 Enforcer stasis bubble strength at 16. 40481_ C-30 ARC bursts open, deploying its payload. 40481_ L-61 Swordsman unfolds itself. 40481_ G-73 Enforcer unfolds itself. Map ----- +----------------------------------------------------+ | ""## ????## #=="#?????# #??? | | ###?##????### " ####"""#?????###++### ####+##?? | | ???????????#"==" #????###?????#" #|*#"" "#?? | | ???????????#"= #????????????#" #=!#"" "#?? | | ???????????# #????????????#" *%!" ###?? | | ???????????#"== #????????????#" "]/* ##?? | | ???????????#"== #????????????#" ##?? | | ???????????#"= #????????????#" " ^ ##??? | | ???????????#" = #????????????#" " "# # " "#?? | | ???????????#" #????????????#"""#""# #"""""#?? | | ???????????#" #????????????####??## #######?? | | ???????????#"" # #???????????????????# #???????? | | ???????????##### #???????????????????# #???????? | | ???????????????# #???????????????????# #???????? | | ???????????????# #???????????????????# #???????? | | ???????????????# #??????????????????## #???????? | | ???????????????# #?????????????????##" =#???????? | | ???????????????# #?????????????????#]"=!#???????? | | ################ #####################%=##??????? | | //=#??????? | | " [[!#??????? | | %g] %!=*#??????? | | ###++################### #######"! #=###??????? | | " !"#????## #?# YgY g #?# #^ # ????????? | | !"#?????# # #?#mggYYg ## ##^ # ##???????? | | ] "#?????### #?# g"@" # ### =^# #????????? | | " !"#????????##?# lg"Y" g ####"%^/# #????????? | | " T" ##???????????# ""G"" #?# "!^!#!#????????? | | " "" "#???????????# ### "% #=#????????? | | " """" "#???????????############ "* #%##""###### | | """"""""#?????????????????????# "[%=%%%/ | | #########?????????????????????## " =%%%% [ | | ???????????????????????????????# # !!% % = | | ???????????????????????????????# #"#"#!#"%% | | ???????????????????????????????#### # ## | | ??????????????????????????????????# # # ## | | ??????????????????????????????????###"#"## | | ????????????????????????????????????# #### | | ????????????????????????????????????#"#??## | | ????????????????????????????????????# #???# | | ?????????????????????????????????????#????# | | ???????????????????????????????????"""""""" | | ?????????????????????????????????????""""? | | ?????????###??????????????????????????""?? | | #???????""""#????""""?????""""????????T"?? | | ######## !!###??????????????????????????? | | ??????????????????????????? ?? | | ?????????????????????????????????? | | ?????????????????????????????????? | | ?????????????????????????????????? | +----------------------------------------------------+ Best States ------------- Heat Dissipation 139 Coolant Potential 65 Energy Generation 61 Energy Capacity 1090 Matter Stores 579 Matter Capacity 800 Sight Range 22 Terrain Scan Range 16 Terrain Scan Density 10 Cloak Strength 6 Base Temperature (-) 150 Armor Coverage 2050 Resistance: KI 30 Resistance: TH 30 Core Shielding 90 Point Defense Rating 480 Weapon Cycling 25 Evasion (%) 40 Targeting Accuracy 30 Target Analysis 10 Core Analysis 11 Armor Integrity Analysis 40 Recoil Reduction 103 Kinecelleration 50 Offensive Hacking 12 Relay Coupler Types 2 Relay Coupler Value 50 Trap Extractor Capacity 6 Item Schematics ----------------- Lgt. Treads | -10/Materials | Hacked Imp. Propulsion Shielding | -9/Materials | Scanalyzed Hacking Suite | -9/Materials | Scanalyzed Exp. Sensor Array | -9/Materials | Scanalyzed Med. Armor Plating | -9/Materials | Scanalyzed Arm. Wheel | -8/Materials | Hacked Arm. Huge Wheel | -8/Materials | Scanalyzed Rnf. Deuterium Engine | -8/Materials | Scanalyzed Plasma Rifle | -7/Factory | Hacked Imp. Cryofiber Web | -7/Factory | Scanalyzed Adv. Assault Cannon | -7/Factory | Hacked Combat Drone Bay | -7/Data Miner | Free Lgt. Regenerative Plating | -7/Data Miner | Free Biomechanical Wings | -7/Data Miner | Free Exp. Propulsion Shielding | -7/Data Miner | Free Imp. Lightning Gun | -7/Data Miner | Free Nuclear Pulse Array | -7/Data Miner | Free Remote Force Field | -7/Data Miner | Free Hvy. Phase Cannon | -7/Data Miner | Free Enh. Armored Heavy Treads | -2/Protoforge | Archive Adv. Energy Well | -2/Protoforge | Archive Exp. Transmission Jammer | -2/Protoforge | Archive Hds. Centrium Wheel | -2/Protoforge | Archive Adv. Particle Accelerator | -2/Protoforge | Archive Zero-point Reactor | -2/Protoforge | Archive Quantum Shading Machine | -2/Protoforge | Archive Adv. Kinecellerator | -2/Protoforge | Archive Exp. Biometal Medium Treads | -2/Protoforge | Archive Cld. Plasma Rifle | -2/Protoforge | Archive Robot Schematics ------------------ M-13 Machinist | -10/Materials | Hacked B-48 Gladiator | -7/Data Miner | Free M-28 Smith | -7/Data Miner | Free M-22 Extractor | -7/Data Miner | Free B-74 Champion | -2/Protoforge | Archive D-83 Annihilator | -2/Protoforge | Archive C-65 Expert | -2/Protoforge | Archive Fabricated ------------ Arm. Huge Wheel | x2 | -6/Factory Repaired ---------- Lgt. Treads | 7% | -10/Materials Lgt. Treads | 25% | -10/Materials Shield Generator | 20% | -9/Materials Rnf. Ion Engine | 50% | -8/Materials Rnf. Deuterium Engine | 80% | -8/Materials | Broken Arm. Treads | 14% | -8/Materials Imp. Cooling System | 35% | -8/Materials Enh. Autogun | 17% | -7/Factory Adv. Cooling System | 11% | -4/Factory Alien Tech Used ----------------- Phase Armor Core Cannon Dimensional Node Initializer Transdimensional Reconstructor Achievements -------------- None Challenges ------------ None Game ------ Seed CloakingBraceBank Manual? 0 Play Time 06:57:21 Cumulative 1016.4 hours Start 2025.07.04 @ 02:00:23 End 2025.07.05 @ 00:21:15 Sessions 9 Manual Loads 0 Difficulty Rogue Special Mode None Game No. 514 Rogue 514 Adventurer 0 Explorer 0 Win Type - Total 23 Types 10/4/3/0/1/1/2/2/0/0 Lore% 88 Gallery% 88 Achievement% 83 Wizard Run 0 Options --------- Layout 0 ASCII 0 Keyboard 0 Movement Numpad Keybinds 0 Fullscreen 2 Font 24/Smallcaps Map View 76x50 Zoom Use 0% Tactical HUD 1 Map Filters NONE Filters SHIFT_HUE(315) Steam 1 RUN: 88bb67ee-a17d-4394-9ead-0ccc41379621